Workbook

Sheet Simple Exercise Complete
A1: Assumptions
B2: Industy | H2: 2015 | I2: 2016 | J2: 2017 | K2: 2018 | L2: 2019 | M2: 2020 | N2: 2021 | O2: 2022 | P2: 2023 | Q2: 2024 | R2: 2025 | S2: 2026
C3: Industry Demand
D4: Base Case | G4: 1 | H4: 100 | I4: =H4*1.05 -> 105 | J4: 110.25 | K4: 115.7625 | L4: 121.550625 | M4: 127.6281563 | N4: 134.0095641 | O4: 140.7100423 | P4: 147.7455444 | Q4: 155.1328216 | R4: 162.8894627 | S4: 171.0339358
D5: Low Case | G5: 2 | H5: 80 | I5: =H5*0.95 -> 76 | J5: =I5*0.95 -> 72.2 | K5: =J5*0.95 -> 68.59 | L5: =K5*0.95 -> 65.1605 | M5: =L5*0.95 -> 61.902475 | N5: =M5*1.02 -> 63.1405245 | O5: 64.40333499 | P5: 65.69140169 | Q5: 67.00522972 | R5: 68.34533432 | S5: 69.712241
D6: High Case | G6: 3 | H6: 110 | I6: =H6*1.05 -> 115.5 | J6: 121.275 | K6: 127.33875 | L6: 133.7056875 | M6: 140.3909719 | N6: 147.4105205 | O6: 154.7810465 | P6: 162.5200988 | Q6: 170.6461038 | R6: 179.1784089 | S6: 188.1373294
D8: =INDEX(D4:D6,$F$8) -> High Case | E8: Code | F8: 3 | H8: =INDEX(H4:H6,$F$8) -> 110 | I8: =INDEX(I4:I6,$F$8) -> 115.5 | J8: 121.275 | K8: 127.33875 | L8: 133.7056875 | M8: 140.3909719 | N8: 147.4105205 | O8: 154.7810465 | P8: 162.5200988 | Q8: 170.6461038 | R8: 179.1784089 | S8: 188.1373294
C10: Industry Supply
D11: Existing Supply | F11: 115
D13: Base Case | G13: 1 | H13: 7 | I13: =H13*1.05 -> 7.35 | J13: 7.7175 | K13: 8.103375 | L13: 8.50854375 | M13: 8.933970938 | N13: 9.380669484 | O13: 9.849702959 | P13: 10.34218811 | Q13: 10.85929751 | R13: 11.40226239 | S13: 11.97237551
D14: Surplus Case | G14: 2 | H14: 17 | I14: 20 | J14: 15 | K14: 5 | L14: 0 | M14: 0 | N14: 0 | O14: 0 | P14: 0 | Q14: 0 | R14: 0 | S14: 0
D15: Tight Case | G15: 3 | H15: 2 | I15: 3 | J15: 5 | K15: 10 | L15: 7 | M15: =L15*1.05 -> 7.35 | N15: 7.7175 | O15: 8.103375 | P15: 8.50854375 | Q15: 8.933970938 | R15: 9.380669484 | S15: 9.849702959
D17: =INDEX(D13:D15,$F$17) -> Tight Case | E17: Code | F17: 3 | H17: =INDEX(H13:H15,$F$17) -> 2 | I17: =INDEX(I13:I15,$F$17) -> 3 | J17: 5 | K17: 10 | L17: 7 | M17: 7.35 | N17: 7.7175 | O17: 8.103375 | P17: 8.50854375 | Q17: 8.933970938 | R17: 9.380669484 | S17: 9.849702959
D19: Retirements | H19: 2 | I19: 3 | J19: 1 | K19: 1 | L19: 3 | M19: 2 | N19: 3 | O19: =N19*1.5 -> 4.5 | P19: =O19*1.5 -> 6.75 | Q19: =P19*1.5 -> 10.125 | R19: =Q19*1.5 -> 15.1875 | S19: =R19*1.5 -> 22.78125
C21: Pricing
D22: Capacity Balance | G22: 0 | H22: 0.9 | I22: 1 | J22: 1.05 | K22: 1.1 | L22: 1.2 | M22: 1.3
D23: LRMC | G23: 100 | H23: 100 | I23: 100 | J23: 100 | K23: 100 | L23: 100 | M23: 100
D24: SRMC | G24: 50 | H24: 50 | I24: 50 | J24: 50 | K24: 50 | L24: 50 | M24: 50
D25: Price | G25: 150 | H25: 120 | I25: 100 | J25: 80 | K25: 75 | L25: 73 | M25: 50
C27: Industry Capacity
D28: Opening Balance | H28: =G31 -> 115 | I28: =H31 -> 115 | J28: 115 | K28: 119 | L28: 128 | M28: 132 | N28: 137.35 | O28: 142.0675 | P28: 145.670875 | Q28: 147.4294187 | R28: 146.2383897 | S28: 140.4315592
D29: Add: New Additions | H29: =H17 -> 2 | I29: =I17 -> 3 | J29: 5 | K29: 10 | L29: 7 | M29: 7.35 | N29: 7.7175 | O29: 8.103375 | P29: 8.50854375 | Q29: 8.933970938 | R29: 9.380669484 | S29: 9.849702959
D30: Less: Retirement | H30: =-H19 -> -2 | I30: =-I19 -> -3 | J30: -1 | K30: -1 | L30: -3 | M30: -2 | N30: -3 | O30: -4.5 | P30: -6.75 | Q30: -10.125 | R30: -15.1875 | S30: -22.78125
D31: Closing Balance | G31: =F11 -> 115 | H31: =SUM(H28:H30) -> 115 | I31: 115 | J31: 119 | K31: 128 | L31: 132 | M31: 137.35 | N31: 142.0675 | O31: 145.670875 | P31: 147.4294187 | Q31: 146.2383897 | R31: 140.4315592 | S31: 127.5000121
C33: Industry Demand | H33: =H8 -> 110 | I33: =I8 -> 115.5 | J33: 121.275 | K33: 127.33875 | L33: 133.7056875 | M33: 140.3909719 | N33: 147.4105205 | O33: 154.7810465 | P33: 162.5200988 | Q33: 170.6461038 | R33: 179.1784089 | S33: 188.1373294
C35: Capcity Margin | H35: =H31/H33 -> 1.045454545 | I35: =I31/I33 -> 0.9956709957 | J35: 0.9812409812 | K35: 1.005192842 | L35: 0.9872429698 | M35: 0.9783392633 | N35: 0.9637541442 | O35: 0.9411415564 | P35: 0.9071457612 | Q35: 0.8569688171 | R35: 0.7837526854 | S35: 0.6776965132
C37: Price | H37: =LOOKUP(H35,22:22,25:25) -> 100 | I37: =LOOKUP(I35,22:22,25:25) -> 120 | J37: 120 | K37: 100 | L37: 120 | M37: 120 | N37: 120 | O37: 120 | P37: 120 | Q37: 150 | R37: 150 | S37: 150

Sheet Complex Exercise Complete
A2: History
B3: Last Historic Year | G3: 2011
B5: Year | G5: 2001 | H5: =G5+1 -> 2002 | I5: 2003 | J5: 2004 | K5: 2005 | L5: 2006 | M5: 2007 | N5: 2008 | O5: 2009 | P5: 2010 | Q5: 2011 | R5: 2012 | S5: 2013 | T5: 2014 | U5: 2015 | V5: 2016 | W5: 2017 | X5: 2018 | Y5: 2019 | Z5: 2020 | AA5: 2021 | AB5: 2022 | AC5: 2023 | AD5: 2024 | AE5: 2025 | AF5: 2026
B6: Historic Switch | G6: =G5<=$G$3 -> TRUE | H6: =H5<=$G$3 -> TRUE | I6: TRUE | J6: TRUE | K6: TRUE | L6: TRUE | M6: TRUE | N6: TRUE | O6: TRUE | P6: TRUE | Q6: TRUE | R6: FALSE | S6: FALSE | T6: FALSE | U6: FALSE | V6: FALSE | W6: FALSE | X6: FALSE | Y6: FALSE | Z6: FALSE | AA6: FALSE | AB6: FALSE | AC6: FALSE | AD6: FALSE | AE6: FALSE | AF6: FALSE
B8: Balance Sheet
C9: Assets
D10: Cash Balance | G10: 2484.3 | H10: 2363.491004 | I10: 2351.789372 | J10: 2541.78153 | K10: 2620.610265 | L10: 2612.864327 | M10: 3039.906256 | N10: 3145.076911 | O10: 3967.965688 | P10: 4197.364825 | Q10: 3851.709975
D11: Investments | G11: 208.5694795 | H11: 3671.11652 | I11: 21065.36326 | J11: 31965.18163 | K11: 3503.240647 | L11: 10958.44563 | M11: 29292.12429 | N11: 8007.699444 | O11: 32876.24132 | P11: 74028.48288 | Q11: 78169.13042
D12: A/R and Other Current Assets | G12: 10209.45205 | H12: 9707.581238 | I12: 9688.051298 | J12: 10484.91634 | K12: 10783.88731 | L12: 10737.96337 | M12: 12444.51908 | N12: 12847.57342 | O12: 16219.57123 | P12: 17106.71135 | Q12: 15722.9009
E13: Total Current Assets | G13: =SUM(G10:G12) -> 12902.32153 | H13: =SUM(H10:H12) -> 15742.18876 | I13: 33105.20393 | J13: 44991.8795 | K13: 16907.73822 | L13: 24309.27333 | M13: 44776.54963 | N13: 24000.34977 | O13: 53063.77824 | P13: 95332.55905 | Q13: 97743.74129
D15: Plant Assets | G15: 480432 | H15: 487302.1776 | I15: 494270.5987 | J15: 501338.6683 | K15: 612547.8113 | L15: 621307.245 | M15: 630191.9386 | N15: 804815.8038 | O15: 816324.6698 | P15: 827998.1125 | Q15: 839838.4855
D16: Accumulated Depreciation | G16: 230240 | H16: 239389.4465 | I16: 248669.73 | J16: 259569.0073 | K16: 271070.03 | L16: 282735.5173 | M16: 296933.7085 | N16: 312044.7001 | O16: 327371.7789 | P16: 342918.0349 | Q16: 358686.6023
E17: Net Plant | G17: =G15-G16 -> 250192 | H17: =H15-H16 -> 247912.7311 | I17: 245600.8687 | J17: 241769.661 | K17: 341477.7813 | L17: 338571.7276 | M17: 333258.23 | N17: 492771.1036 | O17: 488952.8909 | P17: 485080.0777 | Q17: 481151.8832
E19: Other Non-Associated Investments | G19: 50322 | H19: 50322 | I19: 50322 | J19: 50322 | K19: 50322 | L19: 50322 | M19: 50322 | N19: 50322 | O19: 50322 | P19: 50322 | Q19: 50322
E20: Derivative Assets | G20: 0 | H20: 0 | I20: 210 | J20: 350 | K20: 0 | L20: 0 | M20: 0 | N20: 320 | O20: 200 | P20: 0 | Q20: 0
E21: Total Other Assets | G21: =SUM(G19:G20) -> 50322 | H21: =SUM(H19:H20) -> 50322 | I21: 50532 | J21: 50672 | K21: 50322 | L21: 50322 | M21: 50322 | N21: 50642 | O21: 50522 | P21: 50322 | Q21: 50322
E23: Total Assets | G23: =G13+G17+G21 -> 313416.3215 | H23: =H13+H17+H21 -> 313976.9199 | I23: 329238.0727 | J23: 337433.5405 | K23: 408707.5195 | L23: 413203.001 | M23: 428356.7797 | N23: 567413.4534 | O23: 592538.6691 | P23: 630734.6367 | Q23: 629217.6245
C26: Liabilities
D27: Short-term Debt | G27: 1630 | H27: 2000 | I27: 2000 | J27: 2000 | K27: 15000 | L27: 7000 | M27: 6000 | N27: 6000 | O27: 6000 | P27: 6000 | Q27: 6000
D28: Other Current Liabilities | G28: 6908.39589 | H28: 6793.197751 | I28: 6894.166344 | J28: 7499.292769 | K28: 7557.231725 | L28: 8427.710993 | M28: 10257.36932 | N28: 9787.958164 | O28: 11858.25455 | P28: 12758.00901 | Q28: 12617.19311
E29: Total Current Liabilities | G29: =G27+G28 -> 8538.39589 | H29: =H27+H28 -> 8793.197751 | I29: 8894.166344 | J29: 9499.292769 | K29: 22557.23172 | L29: 15427.71099 | M29: 16257.36932 | N29: 15787.95816 | O29: 17858.25455 | P29: 18758.00901 | Q29: 18617.19311
E31: Long-term Debt | G31: 87743.81058 | H31: 77542.8221 | I31: 81801.9515 | J31: 79196.73814 | K31: 116518.5185 | L31: 117203.2837 | M31: 122322.835 | N31: 156829.2928 | O31: 168833.5846 | P31: 190119.2833 | Q31: 171680.3787
E32: Un-funded Pension Plans | G32: 367 | H32: 351.8463688 | I32: 378.3037969 | J32: 530.8939626 | K32: 529.6763946 | L32: 821.1462157 | M32: 1302.803233 | N32: 1108.502457 | O32: 1554.915033 | P32: 1798.956526 | Q32: 1873.707536
E34: Deferred Income Taxes | G34: 25019.2 | H34: 24791.27311 | I34: 24560.08687 | J34: 24176.9661 | K34: 34147.77813 | L34: 33857.17276 | M34: 33325.823 | N34: 49277.11036 | O34: 48895.28909 | P34: 48508.00777 | Q34: 48115.18832
E35: Derivative Liabilities | G35: 0 | H35: 0 | I35: 0 | J35: 0 | K35: 290 | L35: 180 | M35: 240 | N35: 0 | O35: 0 | P35: 120 | Q35: 315
E36: Total Other Liabilities | G36: =G31+G32+G34+G35 -> 113130.0106 | H36: =H31+H32+H34+H35 -> 102685.9416 | I36: 106740.3422 | J36: 103904.5982 | K36: 151485.973 | L36: 152061.6027 | M36: 157191.4613 | N36: 207214.9057 | O36: 219283.7888 | P36: 240546.2475 | Q36: 221984.2745
E38: Minority Interest | G38: 19174.79151 | H38: 20185.27886 | I38: 21229.22252 | J38: 22209.27455 | K38: 23208.93308 | L38: 24247.57409 | M38: 25111.8347 | N38: 26005.08291 | O38: 27037.77032 | P38: 28544.94323 | Q38: 30160.40623
E39: Common Equity | G39: 95873.95753 | H39: 95873.95753 | I39: 95873.95753 | J39: 95873.95753 | K39: 95873.95753 | L39: 95873.95753 | M39: 95873.95753 | N39: 175873.9575 | O39: 175873.9575 | P39: 175873.9575 | Q39: 175873.9575
E40: Retained Earnings | G40: 76699.16603 | H40: 86438.54417 | I40: 96500.3841 | J40: 105946.4174 | K40: 115581.4241 | L40: 125592.1557 | M40: 133922.1568 | N40: 142531.5491 | O40: 152484.898 | P40: 167011.4794 | Q40: 182581.7931
E41: Total Equity | G41: 191747.9151 | H41: 202497.7806 | I41: 213603.5642 | J41: 224029.6495 | K41: 234664.3148 | L41: 245713.6873 | M41: 254907.9491 | N41: 344410.5896 | O41: 355396.6258 | P41: 371430.3802 | Q41: 388616.1569
E43: Total Liabilities and Capital | G43: =G29+G36+G41 -> 313416.3215 | H43: =H29+H36+H41 -> 313976.9199 | I43: 329238.0727 | J43: 337433.5405 | K43: 408707.5195 | L43: 413203.001 | M43: 428356.7797 | N43: 567413.4534 | O43: 592538.6691 | P43: 630734.6367 | Q43: 629217.6245
E45: Difference | G45: =G23-G43 -> 0 | H45: =H23-H43 -> 0 | I45: 0 | J45: 0 | K45: 0 | L45: 0 | M45: 0 | N45: 0 | O45: 0 | P45: 0 | Q45: 0
G46: =-G45 -> 0 | H46: =-H45 -> 0 | I46: 0 | J46: 0 | K46: 0 | L46: 0 | M46: 0 | N46: 0 | O46: 0 | P46: 0 | Q46: 0
B48: Income Statement
D50: Revenues | G50: 124215 | H50: 118174.5502 | I50: 117589.4686 | J50: 127089.0765 | K50: 131030.5132 | L50: 130643.2164 | M50: 151995.3128 | N50: 157253.8455 | O50: 198398.2844 | P50: 209868.2413 | Q50: 192585.4988
D51: Less: Cash Operating Expense | G51: 41405 | H51: 41011.00559 | I51: 41698.89872 | J51: 45666.24303 | K51: 45634.58626 | L51: 53212.80161 | M51: 65735.88406 | N51: 60684.06389 | O51: 72290.79086 | P51: 78635.86967 | Q51: 80579.39595
E52: Gross Profit | G52: =G50-G51 -> 82810 | H52: =H50-H51 -> 77163.54462 | I52: 75890.56987 | J52: 81422.8335 | K52: 85395.92697 | L52: 77430.41475 | M52: 86259.42872 | N52: 96569.78164 | O52: 126107.4935 | P52: 131232.3716 | Q52: 112006.1028
D53: Less: Selling and Administrative | G53: 18632.25 | H53: 18048.55142 | I53: 18112.29887 | J53: 19331.78025 | K53: 19979.31674 | L53: 20027.21737 | M53: 23652.11938 | N53: 24743.3645 | O53: 31157.93947 | P53: 32896.5121 | Q53: 29597.24595
D54: Less: Depreciation Expense | G54: 13824.77397 | H54: 14022.46823 | I54: 14222.98953 | J54: 15912.66399 | K54: 17626.5008 | L54: 17878.55976 | M54: 20500.1106 | N54: 23159.14962 | O54: 23490.32546 | P54: 23826.23712 | Q54: 24166.95231
E55: Operating Profit | G55: =G52-G53-G54 -> 50352.97603 | H55: =H52-H53-H54 -> 45092.52497 | I55: 43555.28146 | J55: 46178.38925 | K55: 47790.10943 | L55: 39524.63762 | M55: 42107.19874 | N55: 48667.26752 | O55: 71459.22862 | P55: 74509.62237 | Q55: 58241.90457
D56: Add: Other Income | G56: 2717.388 | H56: 2717.388 | I56: 2818.032 | J56: 2818.032 | K56: 2818.032 | L56: 3019.32 | M56: 3019.32 | N56: 2516.1 | O56: 2616.744 | P56: 2566.422 | Q56: 2717.388
D57: Add: Interest Income | G57: 52.94458959 | H57: 120.7044733 | I57: 468.3553755 | J57: 690.1513971 | K57: 22.48882629 | L57: 271.2351246 | M57: 646.4485171 | N57: 222.8600342 | O57: 736.6832659 | P57: 1564.309075 | Q57: 1640.200027
D58: Less: Interest Expense - LTD | G58: 5264.628635 | H58: 4348.014175 | I58: 5503.222411 | J58: 4994.311782 | K58: 6464.443939 | L58: 6415.650247 | M58: 6555.78126 | N58: 8281.429469 | O58: 10728.47295 | P58: 11095.04957 | Q58: 8321.653754
D59: Less: Interest Expense - STD | G59: 81.5 | H59: 100 | I59: 100 | J59: 100 | K59: 500 | L59: 350 | M59: 300 | N59: 300 | O59: 300 | P59: 300 | Q59: 300
E60: Earnings Before Tax | G60: =G55+G56+G57-G58-G59 -> 47777.17999 | H60: =H55+H56+H57-H58-H59 -> 43482.60326 | I60: 41238.44643 | J60: 44592.26086 | K60: 43666.18632 | L60: 36049.5425 | M60: 38917.18599 | N60: 42824.79808 | O60: 63784.18293 | P60: 67245.30388 | Q60: 53977.83885
D61: Less: Taxes | G61: 11944.295 | H61: 11751.79301 | I61: 11449.6311 | J61: 14207.50305 | K61: 12096.55053 | L61: 9780.223138 | M61: 11766.78446 | N61: 11436.12318 | O61: 17973.4562 | P61: 18143.08477 | Q61: 14519.77821
E62: Net Income before Minority | G62: =G60-G61 -> 35832.88499 | H62: =H60-H61 -> 31730.81026 | I62: 29788.81533 | J62: 30384.75781 | K62: 31569.63578 | L62: 26269.31936 | M62: 27150.40154 | N62: 31388.6749 | O62: 45810.72673 | P62: 49102.2191 | Q62: 39458.06063
D63: Less: Minority | G63: 3368.291189 | H63: 2982.696164 | I63: 2800.148641 | J63: 2856.167234 | K63: 2967.545764 | L63: 2469.31602 | M63: 2552.137745 | N63: 2950.535441 | O63: 4306.208313 | P63: 4615.608596 | Q63: 3709.057699
E64: Net Income | G64: =G62-G63 -> 32464.5938 | H64: =H62-H63 -> 28748.11409 | I64: 26988.66669 | J64: 27528.59058 | K64: 28602.09002 | L64: 23800.00334 | M64: 24598.26379 | N64: 28438.13946 | O64: 41504.51842 | P64: 44486.61051 | Q64: 35749.00293
E66: Shares | G66: 7400 | H66: 7400 | I66: 7400 | J66: 7400 | K66: 7400 | L66: 7400 | M66: 7400 | N66: 9425.616352 | O66: 9425.616352 | P66: 9425.616352 | Q66: 9425.616352
E67: EPS | G67: =G64/G66 -> 4.387107271 | H67: =H64/H66 -> 3.884880283 | I67: 3.64711712 | J67: 3.720079808 | K67: 3.8651473 | L67: 3.216216667 | M67: 3.324089702 | N67: 3.017111921 | O67: 4.403374471 | P67: 4.719756124 | Q67: 3.79274963
E69: Dividends | G69: 22725.21566 | H69: 18686.27416 | I69: 17542.63335 | J69: 17893.58388 | K69: 18591.35851 | L69: 15470.00217 | M69: 15988.87147 | N69: 18484.79065 | O69: 26977.93697 | P69: 28916.29683 | Q69: 23236.85191
B71: Operating
C72: Industry Volumes | G72: 1820 | H72: 2115.430709 | I72: 2033.635572 | J72: 2327.454887 | K72: 2615.429791 | L72: 3170.967619 | M72: 3198.701082 | N72: 3416.189567 | O72: 2842.858222 | P72: 2814.362473 | Q72: 2884.093227
C73: Company Volumes | G73: 637 | H73: 593.6260721 | I73: 567.8963715 | J73: 619.9177467 | K73: 610.9090559 | L73: 657.5286032 | M73: 803.3101371 | N73: 733.0110291 | O73: 871.0578988 | P73: 912.5961351 | Q73: 868.3291743
C75: Industry Capacity | G75: 2020 | H75: 2200 | I75: 2400 | J75: 2600 | K75: 2800 | L75: 3400 | M75: 3400 | N75: 3900 | O75: 3900 | P75: 3900 | Q75: 4200
C76: Company Capacity | G76: 700 | H76: 700 | I76: 700 | J76: 800 | K76: 800 | L76: 800 | M76: 850 | N76: 940 | O76: 1050 | P76: 1100 | Q76: 1200
C78: Cost of Capacity | H78: 500 | I78: 510 | J78: 520.2 | K78: 530.604 | L78: 541.21608 | M78: 552.0404016 | N78: 563.0812096 | O78: 574.3428338 | P78: 585.8296905 | Q78: 597.5462843
B80: Assumptions
C81: Industry Demand Growth | G81: 0.04
C83: Capacity Scenario Code Number | G83: 1
D85: Company Modelled | G85: 2012 | H85: 2014 | I85: 2017 | J85: 2019 | K85: 2020
E86: Base Case | G86: 200 | H86: 100 | I86: 300 | J86: 150 | K86: 200
E87: Low Demand | G87: 200 | H87: 100 | I87: 300 | J87: 0 | K87: 0
E88: Surplus Capacity | G88: 200 | H88: 100 | I88: 300 | J88: 400 | K88: 400
E89: =INDEX(E86:E88,$G$83) -> Base Case | G89: =INDEX(G86:G88,$G$83) -> 200 | H89: 100 | I89: 300 | J89: 150 | K89: 200
D91: Other Company 1 | G91: 2012 | H91: 2015 | I91: 2018 | J91: 2020
E92: Base Case | G92: 100 | H92: 200 | I92: 400 | J92: 100
E93: Low Demand | G93: 100 | H93: 200 | I93: 100 | J93: 0
E94: Surplus Capacity | G94: 100 | H94: 200 | I94: 500 | J94: 300
E95: =INDEX(E92:E94,$G$83) -> Base Case | G95: =INDEX(G92:G94,$G$83) -> 100 | H95: 200 | I95: 400 | J95: 100
D97: Other Company 2 | G97: 2012 | H97: 2015 | I97: 2016 | J97: 2017 | K97: 2019 | L97: 2020
E98: Base Case | G98: 50 | H98: 50 | I98: 50 | J98: 50 | K98: 50 | L98: 50
E99: Low Demand | G99: 50 | H99: 50 | I99: 50 | J99: 50 | K99: 0 | L99: 0
E100: Surplus Capacity | G100: 50 | H100: 50 | I100: 50 | J100: 50 | K100: 100 | L100: 100
E101: =INDEX(E98:E100,$G$83) -> Base Case | G101: =INDEX(G98:G100,$G$83) -> 50 | H101: 50 | I101: 50 | J101: 50 | K101: 50 | L101: 50
D103: Other Company 3 | G103: 2012 | H103: 2013 | I103: 2014 | J103: 2017 | K103: 2019
E104: Base Case | G104: 300 | H104: 20 | I104: 150 | J104: 400 | K104: 200
E105: Low Demand | G105: 300 | H105: 20 | I105: 150 | J105: 200 | K105: 100
E106: Surplus Capacity | G106: 300 | H106: 20 | I106: 150 | J106: 100 | K106: 50
E107: =INDEX(E104:E106,$G$83) -> Base Case | G107: =INDEX(G104:G106,$G$83) -> 300 | H107: 20 | I107: 150 | J107: 400 | K107: 200
D109: Other Company 4 | G109: 2012 | H109: 2015 | I109: 2018 | J109: 2020
E110: Base Case | G110: 350 | H110: 450 | I110: 250 | J110: 150
E111: Low Demand | G111: 350 | H111: 450 | I111: 20 | J111: 0
E112: Surplus Capacity | G112: 350 | H112: 450 | I112: 350 | J112: 300
E113: =INDEX(E110:E112,$G$83) -> Base Case | G113: =INDEX(G110:G112,$G$83) -> 350 | H113: 450 | I113: 250 | J113: 150
C115: Price
D116: Revenues | G116: =G50 -> 124215 | H116: 118174.5502 | I116: 117589.4686 | J116: 127089.0765 | K116: 131030.5132 | L116: 130643.2164 | M116: 151995.3128 | N116: 157253.8455 | O116: 198398.2844 | P116: 209868.2413 | Q116: 192585.4988 | R116: 0 | S116: 0 | T116: 0 | U116: 0 | V116: 0 | W116: 0 | X116: 0 | Y116: 0 | Z116: 0 | AA116: 0 | AB116: 0 | AC116: 0 | AD116: 0 | AE116: 0 | AF116: 0
D117: Volumes | G117: =G73 -> 637 | H117: 593.6260721 | I117: 567.8963715 | J117: 619.9177467 | K117: 610.9090559 | L117: 657.5286032 | M117: 803.3101371 | N117: 733.0110291 | O117: 871.0578988 | P117: 912.5961351 | Q117: 868.3291743 | R117: 0 | S117: 0 | T117: 0 | U117: 0 | V117: 0 | W117: 0 | X117: 0 | Y117: 0 | Z117: 0 | AA117: 0 | AB117: 0 | AC117: 0 | AD117: 0 | AE117: 0 | AF117: 0
E118: Historic Price | G118: =IF(G6,G116/G117) -> 195 | H118: 199.0723719 | I118: 207.0614896 | J118: 205.0095794 | K118: 214.4844833 | L118: 198.6882635 | M118: 189.211247 | N118: 214.5313499 | O118: 227.7670459 | P118: 229.9683652 | Q118: 221.7885849 | R118: FALSE | S118: FALSE | T118: FALSE | U118: FALSE | V118: FALSE | W118: FALSE | X118: FALSE | Y118: FALSE | Z118: FALSE | AA118: FALSE | AB118: FALSE | AC118: FALSE | AD118: FALSE | AE118: FALSE | AF118: FALSE
C121: Projected Price Table
D122: Capacity Balance | G122: 0 | H122: 0.9 | I122: 1 | J122: 1.05 | K122: 1.3 | L122: 1.5 | M122: 2
D123: LRMC | G123: 250 | H123: 250 | I123: 250 | J123: 250 | K123: 250 | L123: 250 | M123: 250
D124: SRMC | G124: 100 | H124: 100 | I124: 100 | J124: 100 | K124: 100 | L124: 100 | M124: 100
D125: Price | G125: 375 | H125: 300 | I125: 250 | J125: 200 | K125: 187.5 | L125: 182.5 | M125: =M124 -> 100
D127: Industry Capacity Balance
E128: Opening Balance | H128: =G134 -> 2020 | I128: =H134 -> 2200 | J128: 2400 | K128: 2600 | L128: 2800 | M128: 3400 | N128: 3400 | O128: 3900 | P128: 3900 | Q128: 3900 | R128: 4200 | S128: 4857 | T128: 4877 | U128: 5127 | V128: 5385 | W128: 5435 | X128: 6185 | Y128: 6594 | Z128: 6994 | AA128: 7354 | AB128: 7354 | AC128: 7354 | AD128: 7354 | AE128: 7354 | AF128: 7354
E129: Add: New Capacity for Company | H129: =IFERROR(INDEX(89:89,MATCH(H5,85:85,0)),0) -> 0 | I129: =IFERROR(INDEX(89:89,MATCH(I5,85:85,0)),0) -> 0 | J129: 0 | K129: 0 | L129: 0 | M129: 0 | N129: 0 | O129: 0 | P129: 0 | Q129: 0 | R129: 200 | S129: 0 | T129: 100 | U129: 0 | V129: 0 | W129: 300 | X129: 0 | Y129: 150 | Z129: 200 | AA129: 0 | AB129: 0 | AC129: 0 | AD129: 0 | AE129: 0 | AF129: 0
E130: Add: New Capacity for Company 1 | H130: =IFERROR(INDEX(95:95,MATCH(H5,91:91,0)),0) -> 0 | I130: =IFERROR(INDEX(95:95,MATCH(I5,91:91,0)),0) -> 0 | J130: 0 | K130: 0 | L130: 0 | M130: 0 | N130: 0 | O130: 0 | P130: 0 | Q130: 0 | R130: 100 | S130: 0 | T130: 0 | U130: 200 | V130: 0 | W130: 0 | X130: 400 | Y130: 0 | Z130: 100 | AA130: 0 | AB130: 0 | AC130: 0 | AD130: 0 | AE130: 0 | AF130: 0
E131: Add: New Capacity for Company 2 | H131: =IFERROR(INDEX(101:101,MATCH(H5,97:97,0)),0) -> 0 | I131: =IFERROR(INDEX(101:101,MATCH(I5,97:97,0)),0) -> 0 | J131: 0 | K131: 0 | L131: 0 | M131: 0 | N131: 0 | O131: 0 | P131: 0 | Q131: 0 | R131: 50 | S131: 0 | T131: 0 | U131: 50 | V131: 50 | W131: 50 | X131: 0 | Y131: 50 | Z131: 50 | AA131: 0 | AB131: 0 | AC131: 0 | AD131: 0 | AE131: 0 | AF131: 0
E132: Add: New Capacity for Company 3 | H132: =IFERROR(INDEX(107:107,MATCH(H5,103:103,0)),0) -> 0 | I132: =IFERROR(INDEX(107:107,MATCH(I5,103:103,0)),0) -> 0 | J132: 0 | K132: 0 | L132: 0 | M132: 0 | N132: 0 | O132: 0 | P132: 0 | Q132: 0 | R132: 300 | S132: 20 | T132: 150 | U132: 0 | V132: 0 | W132: 400 | X132: 0 | Y132: 200 | Z132: 0 | AA132: 0 | AB132: 0 | AC132: 0 | AD132: 0 | AE132: 0 | AF132: 0
E133: Add: New Capacity for Company 4 | H133: =IFERROR(MATCH(H5,109:109,113:113),0) -> 0 | I133: =IFERROR(MATCH(I5,109:109,113:113),0) -> 0 | J133: 0 | K133: 0 | L133: 0 | M133: 0 | N133: 0 | O133: 0 | P133: 0 | Q133: 0 | R133: 7 | S133: 0 | T133: 0 | U133: 8 | V133: 0 | W133: 0 | X133: 9 | Y133: 0 | Z133: 10 | AA133: 0 | AB133: 0 | AC133: 0 | AD133: 0 | AE133: 0 | AF133: 0
E134: Closing Balance | G134: =IF(G6,G75,SUM(G128:G133)) -> 2020 | H134: =IF(H6,H75,SUM(H128:H133)) -> 2200 | I134: 2400 | J134: 2600 | K134: 2800 | L134: 3400 | M134: 3400 | N134: 3900 | O134: 3900 | P134: 3900 | Q134: 4200 | R134: 4857 | S134: 4877 | T134: 5127 | U134: 5385 | V134: 5435 | W134: 6185 | X134: 6594 | Y134: 6994 | Z134: 7354 | AA134: 7354 | AB134: 7354 | AC134: 7354 | AD134: 7354 | AE134: 7354 | AF134: 7354
D136: Industry Demand
E137: Growth Rate | G137: =IF(NOT(G6),$G$81) -> FALSE | H137: =IF(NOT(H6),$G$81) -> FALSE | I137: FALSE | J137: FALSE | K137: FALSE | L137: FALSE | M137: FALSE | N137: FALSE | O137: FALSE | P137: FALSE | Q137: FALSE | R137: 0.04 | S137: 0.04 | T137: 0.04 | U137: 0.04 | V137: 0.04 | W137: 0.04 | X137: 0.04 | Y137: 0.04 | Z137: 0.04 | AA137: 0.04 | AB137: 0.04 | AC137: 0.04 | AD137: 0.04 | AE137: 0.04 | AF137: 0.04
E138: Demand | G138: =IF(G6,G72,F138*(1+G137)) -> 1820 | H138: =IF(H6,H72,G138*(1+H137)) -> 2115.430709 | I138: 2033.635572 | J138: 2327.454887 | K138: 2615.429791 | L138: 3170.967619 | M138: 3198.701082 | N138: 3416.189567 | O138: 2842.858222 | P138: 2814.362473 | Q138: 2884.093227 | R138: 2999.456956 | S138: 3119.435234 | T138: 3244.212643 | U138: 3373.981149 | V138: 3508.940395 | W138: 3649.298011 | X138: 3795.269931 | Y138: 3947.080728 | Z138: 4104.963958 | AA138: 4269.162516 | AB138: 4439.929017 | AC138: 4617.526177 | AD138: 4802.227224 | AE138: 4994.316313 | AF138: 5194.088966
E140: Capacity Margin | G140: =G134/G138 -> 1.10989011 | H140: =H134/H138 -> 1.039977339 | I140: 1.180152448 | J140: 1.117100063 | K140: 1.070569743 | L140: 1.072227915 | M140: 1.062931457 | N140: 1.141622829 | O140: 1.371858776 | P140: 1.385749006 | Q140: 1.456263605 | R140: 1.619293116 | S140: 1.563424028 | T140: 1.580352635 | U140: 1.59603737 | V140: 1.548900633 | W140: 1.694846511 | X140: 1.737425827 | Y140: 1.771942476 | Z140: 1.791489542 | AA140: 1.722586098 | AB140: 1.656332787 | AC140: 1.592627679 | AD140: 1.531372769 | AE140: 1.472473816 | AF140: 1.415840208
E142: Company Capacity | G142: =IF(G6,G76,F142+G129) -> 700 | H142: =IF(H6,H76,G142+H129) -> 700 | I142: 700 | J142: 800 | K142: 800 | L142: 800 | M142: 850 | N142: 940 | O142: 1050 | P142: 1100 | Q142: 1200 | R142: 1400 | S142: 1400 | T142: 1500 | U142: 1500 | V142: 1500 | W142: 1800 | X142: 1800 | Y142: 1950 | Z142: 2150 | AA142: 2150 | AB142: 2150 | AC142: 2150 | AD142: 2150 | AE142: 2150 | AF142: 2150
E143: Company Demand | G143: =IF(G6,G73,G142/G140) -> 637 | H143: =IF(H6,H73,H142/H140) -> 593.6260721 | I143: 567.8963715 | J143: 619.9177467 | K143: 610.9090559 | L143: 657.5286032 | M143: 803.3101371 | N143: 733.0110291 | O143: 871.0578988 | P143: 912.5961351 | Q143: 868.3291743 | R143: 864.5747865 | S143: 895.4704383 | T143: 949.1552496 | U143: 939.8276181 | V143: 968.4288119 | W143: 1062.043075 | X143: 1036.01545 | Y143: 1100.487192 | Z143: 1200.118644 | AA143: 1248.12339 | AB143: 1298.048325 | AC143: 1349.970259 | AD143: 1403.969069 | AE143: 1460.127832 | AF143: 1518.532945
E145: Price | G145: =IF(G6,G118,LOOKUP(G140,122:122,125:125)) -> 195 | H145: =IF(H6,H118,LOOKUP(H140,122:122,125:125)) -> 199.0723719 | I145: 207.0614896 | J145: 205.0095794 | K145: 214.4844833 | L145: 198.6882635 | M145: 189.211247 | N145: 214.5313499 | O145: 227.7670459 | P145: 229.9683652 | Q145: 221.7885849 | R145: 182.5 | S145: 182.5 | T145: 182.5 | U145: 182.5 | V145: 182.5 | W145: 182.5 | X145: 182.5 | Y145: 182.5 | Z145: 182.5 | AA145: 182.5 | AB145: 182.5 | AC145: 182.5 | AD145: 182.5 | AE145: 187.5 | AF145: 187.5

Sheet Simple Exercies
A1: Assumptions
B2: Industy | H2: 2015 | I2: 2016 | J2: 2017 | K2: 2018 | L2: 2019 | M2: 2020 | N2: 2021 | O2: 2022 | P2: 2023 | Q2: 2024 | R2: 2025 | S2: 2026
C3: Industry Demand
D4: Base Case | G4: 1 | H4: 100 | I4: =H4*1.05 -> 105 | J4: 110.25 | K4: 115.7625 | L4: 121.550625 | M4: 127.6281563 | N4: 134.0095641 | O4: 140.7100423 | P4: 147.7455444 | Q4: 155.1328216 | R4: 162.8894627 | S4: 171.0339358
D5: Low Case | G5: 2 | H5: 80 | I5: =H5*0.95 -> 76 | J5: =I5*0.95 -> 72.2 | K5: =J5*0.95 -> 68.59 | L5: =K5*0.95 -> 65.1605 | M5: =L5*0.95 -> 61.902475 | N5: =M5*1.02 -> 63.1405245 | O5: 64.40333499 | P5: 65.69140169 | Q5: 67.00522972 | R5: 68.34533432 | S5: 69.712241
D6: High Case | G6: 3 | H6: 110 | I6: =H6*1.05 -> 115.5 | J6: 121.275 | K6: 127.33875 | L6: 133.7056875 | M6: 140.3909719 | N6: 147.4105205 | O6: 154.7810465 | P6: 162.5200988 | Q6: 170.6461038 | R6: 179.1784089 | S6: 188.1373294
E8: Code | F8: 3
C10: Industry Supply
D11: Existing Supply | F11: 115
D13: Base Case | G13: 1 | H13: 7 | I13: =H13*1.05 -> 7.35 | J13: 7.7175 | K13: 8.103375 | L13: 8.50854375 | M13: 8.933970938 | N13: 9.380669484 | O13: 9.849702959 | P13: 10.34218811 | Q13: 10.85929751 | R13: 11.40226239 | S13: 11.97237551
D14: Surplus Case | G14: 2 | H14: 17 | I14: 20 | J14: 15 | K14: 5 | L14: 0 | M14: 0 | N14: 0 | O14: 0 | P14: 0 | Q14: 0 | R14: 0 | S14: 0
D15: Tight Case | G15: 3 | H15: 2 | I15: 3 | J15: 5 | K15: 10 | L15: 7 | M15: =L15*1.05 -> 7.35 | N15: 7.7175 | O15: 8.103375 | P15: 8.50854375 | Q15: 8.933970938 | R15: 9.380669484 | S15: 9.849702959
E17: Code | F17: 3
D19: Retirements | H19: 2 | I19: 3 | J19: 1 | K19: 1 | L19: 3 | M19: 2 | N19: 3 | O19: =N19*1.5 -> 4.5 | P19: =O19*1.5 -> 6.75 | Q19: =P19*1.5 -> 10.125 | R19: =Q19*1.5 -> 15.1875 | S19: =R19*1.5 -> 22.78125
C21: Pricing
D22: Capacity Balance | G22: 0 | H22: 0.9 | I22: 1 | J22: 1.05 | K22: 1.1 | L22: 1.2 | M22: 1.3
D23: LRMC | G23: 100 | H23: 100 | I23: 100 | J23: 100 | K23: 100 | L23: 100 | M23: 100
D24: SRMC | G24: 50 | H24: 50 | I24: 50 | J24: 50 | K24: 50 | L24: 50 | M24: 50
D25: Price | G25: 150 | H25: 120 | I25: 100 | J25: 80 | K25: 75 | L25: 73 | M25: 50
C27: Industry Capacity
D28: Opening Balance
D29: Add: New Additions
D30: Less: Retirement
D31: Closing Balance
C33: Industry Demand
C35: Capcity Margin
C37: Price

Sheet Complex Exercise
A2: History
B3: Last Historic Year | G3: 2011
B5: Year | G5: 2001 | H5: =G5+1 -> 2002 | I5: 2003 | J5: 2004 | K5: 2005 | L5: 2006 | M5: 2007 | N5: 2008 | O5: 2009 | P5: 2010 | Q5: 2011 | R5: 2012 | S5: 2013 | T5: 2014 | U5: 2015 | V5: 2016 | W5: 2017 | X5: 2018 | Y5: 2019 | Z5: 2020 | AA5: 2021 | AB5: 2022 | AC5: 2023 | AD5: 2024 | AE5: 2025 | AF5: 2026
B6: Historic Switch | G6: =G5<=$G$3 -> TRUE | H6: =H5<=$G$3 -> TRUE | I6: TRUE | J6: TRUE | K6: TRUE | L6: TRUE | M6: TRUE | N6: TRUE | O6: TRUE | P6: TRUE | Q6: TRUE | R6: FALSE | S6: FALSE | T6: FALSE | U6: FALSE | V6: FALSE | W6: FALSE | X6: FALSE | Y6: FALSE | Z6: FALSE | AA6: FALSE | AB6: FALSE | AC6: FALSE | AD6: FALSE | AE6: FALSE | AF6: FALSE
B8: Balance Sheet
C9: Assets
D10: Cash Balance | G10: 2484.3 | H10: 2363.491004 | I10: 2351.789372 | J10: 2541.78153 | K10: 2620.610265 | L10: 2612.864327 | M10: 3039.906256 | N10: 3145.076911 | O10: 3967.965688 | P10: 4197.364825 | Q10: 3851.709975
D11: Investments | G11: 208.5694795 | H11: 3671.11652 | I11: 21065.36326 | J11: 31965.18163 | K11: 3503.240647 | L11: 10958.44563 | M11: 29292.12429 | N11: 8007.699444 | O11: 32876.24132 | P11: 74028.48288 | Q11: 78169.13042
D12: A/R and Other Current Assets | G12: 10209.45205 | H12: 9707.581238 | I12: 9688.051298 | J12: 10484.91634 | K12: 10783.88731 | L12: 10737.96337 | M12: 12444.51908 | N12: 12847.57342 | O12: 16219.57123 | P12: 17106.71135 | Q12: 15722.9009
E13: Total Current Assets | G13: =SUM(G10:G12) -> 12902.32153 | H13: =SUM(H10:H12) -> 15742.18876 | I13: 33105.20393 | J13: 44991.8795 | K13: 16907.73822 | L13: 24309.27333 | M13: 44776.54963 | N13: 24000.34977 | O13: 53063.77824 | P13: 95332.55905 | Q13: 97743.74129
D15: Plant Assets | G15: 480432 | H15: 487302.1776 | I15: 494270.5987 | J15: 501338.6683 | K15: 612547.8113 | L15: 621307.245 | M15: 630191.9386 | N15: 804815.8038 | O15: 816324.6698 | P15: 827998.1125 | Q15: 839838.4855
D16: Accumulated Depreciation | G16: 230240 | H16: 239389.4465 | I16: 248669.73 | J16: 259569.0073 | K16: 271070.03 | L16: 282735.5173 | M16: 296933.7085 | N16: 312044.7001 | O16: 327371.7789 | P16: 342918.0349 | Q16: 358686.6023
E17: Net Plant | G17: =G15-G16 -> 250192 | H17: =H15-H16 -> 247912.7311 | I17: 245600.8687 | J17: 241769.661 | K17: 341477.7813 | L17: 338571.7276 | M17: 333258.23 | N17: 492771.1036 | O17: 488952.8909 | P17: 485080.0777 | Q17: 481151.8832
E19: Other Non-Associated Investments | G19: 50322 | H19: 50322 | I19: 50322 | J19: 50322 | K19: 50322 | L19: 50322 | M19: 50322 | N19: 50322 | O19: 50322 | P19: 50322 | Q19: 50322
E20: Derivative Assets | G20: 0 | H20: 0 | I20: 210 | J20: 350 | K20: 0 | L20: 0 | M20: 0 | N20: 320 | O20: 200 | P20: 0 | Q20: 0
E21: Total Other Assets | G21: =SUM(G19:G20) -> 50322 | H21: =SUM(H19:H20) -> 50322 | I21: 50532 | J21: 50672 | K21: 50322 | L21: 50322 | M21: 50322 | N21: 50642 | O21: 50522 | P21: 50322 | Q21: 50322
E23: Total Assets | G23: =G13+G17+G21 -> 313416.3215 | H23: =H13+H17+H21 -> 313976.9199 | I23: 329238.0727 | J23: 337433.5405 | K23: 408707.5195 | L23: 413203.001 | M23: 428356.7797 | N23: 567413.4534 | O23: 592538.6691 | P23: 630734.6367 | Q23: 629217.6245
C26: Liabilities
D27: Short-term Debt | G27: 1630 | H27: 2000 | I27: 2000 | J27: 2000 | K27: 15000 | L27: 7000 | M27: 6000 | N27: 6000 | O27: 6000 | P27: 6000 | Q27: 6000
D28: Other Current Liabilities | G28: 6908.39589 | H28: 6793.197751 | I28: 6894.166344 | J28: 7499.292769 | K28: 7557.231725 | L28: 8427.710993 | M28: 10257.36932 | N28: 9787.958164 | O28: 11858.25455 | P28: 12758.00901 | Q28: 12617.19311
E29: Total Current Liabilities | G29: =G27+G28 -> 8538.39589 | H29: =H27+H28 -> 8793.197751 | I29: 8894.166344 | J29: 9499.292769 | K29: 22557.23172 | L29: 15427.71099 | M29: 16257.36932 | N29: 15787.95816 | O29: 17858.25455 | P29: 18758.00901 | Q29: 18617.19311
E31: Long-term Debt | G31: 87743.81058 | H31: 77542.8221 | I31: 81801.9515 | J31: 79196.73814 | K31: 116518.5185 | L31: 117203.2837 | M31: 122322.835 | N31: 156829.2928 | O31: 168833.5846 | P31: 190119.2833 | Q31: 171680.3787
E32: Un-funded Pension Plans | G32: 367 | H32: 351.8463688 | I32: 378.3037969 | J32: 530.8939626 | K32: 529.6763946 | L32: 821.1462157 | M32: 1302.803233 | N32: 1108.502457 | O32: 1554.915033 | P32: 1798.956526 | Q32: 1873.707536
E34: Deferred Income Taxes | G34: 25019.2 | H34: 24791.27311 | I34: 24560.08687 | J34: 24176.9661 | K34: 34147.77813 | L34: 33857.17276 | M34: 33325.823 | N34: 49277.11036 | O34: 48895.28909 | P34: 48508.00777 | Q34: 48115.18832
E35: Derivative Liabilities | G35: 0 | H35: 0 | I35: 0 | J35: 0 | K35: 290 | L35: 180 | M35: 240 | N35: 0 | O35: 0 | P35: 120 | Q35: 315
E36: Total Other Liabilities | G36: =G31+G32+G34+G35 -> 113130.0106 | H36: =H31+H32+H34+H35 -> 102685.9416 | I36: 106740.3422 | J36: 103904.5982 | K36: 151485.973 | L36: 152061.6027 | M36: 157191.4613 | N36: 207214.9057 | O36: 219283.7888 | P36: 240546.2475 | Q36: 221984.2745
E38: Minority Interest | G38: 19174.79151 | H38: 20185.27886 | I38: 21229.22252 | J38: 22209.27455 | K38: 23208.93308 | L38: 24247.57409 | M38: 25111.8347 | N38: 26005.08291 | O38: 27037.77032 | P38: 28544.94323 | Q38: 30160.40623
E39: Common Equity | G39: 95873.95753 | H39: 95873.95753 | I39: 95873.95753 | J39: 95873.95753 | K39: 95873.95753 | L39: 95873.95753 | M39: 95873.95753 | N39: 175873.9575 | O39: 175873.9575 | P39: 175873.9575 | Q39: 175873.9575
E40: Retained Earnings | G40: 76699.16603 | H40: 86438.54417 | I40: 96500.3841 | J40: 105946.4174 | K40: 115581.4241 | L40: 125592.1557 | M40: 133922.1568 | N40: 142531.5491 | O40: 152484.898 | P40: 167011.4794 | Q40: 182581.7931
E41: Total Equity | G41: 191747.9151 | H41: 202497.7806 | I41: 213603.5642 | J41: 224029.6495 | K41: 234664.3148 | L41: 245713.6873 | M41: 254907.9491 | N41: 344410.5896 | O41: 355396.6258 | P41: 371430.3802 | Q41: 388616.1569
E43: Total Liabilities and Capital | G43: =G29+G36+G41 -> 313416.3215 | H43: =H29+H36+H41 -> 313976.9199 | I43: 329238.0727 | J43: 337433.5405 | K43: 408707.5195 | L43: 413203.001 | M43: 428356.7797 | N43: 567413.4534 | O43: 592538.6691 | P43: 630734.6367 | Q43: 629217.6245
E45: Difference | G45: =G23-G43 -> 0 | H45: =H23-H43 -> 0 | I45: 0 | J45: 0 | K45: 0 | L45: 0 | M45: 0 | N45: 0 | O45: 0 | P45: 0 | Q45: 0
G46: =-G45 -> 0 | H46: =-H45 -> 0 | I46: 0 | J46: 0 | K46: 0 | L46: 0 | M46: 0 | N46: 0 | O46: 0 | P46: 0 | Q46: 0
B48: Income Statement
D50: Revenues | G50: 124215 | H50: 118174.5502 | I50: 117589.4686 | J50: 127089.0765 | K50: 131030.5132 | L50: 130643.2164 | M50: 151995.3128 | N50: 157253.8455 | O50: 198398.2844 | P50: 209868.2413 | Q50: 192585.4988
D51: Less: Cash Operating Expense | G51: 41405 | H51: 41011.00559 | I51: 41698.89872 | J51: 45666.24303 | K51: 45634.58626 | L51: 53212.80161 | M51: 65735.88406 | N51: 60684.06389 | O51: 72290.79086 | P51: 78635.86967 | Q51: 80579.39595
E52: Gross Profit | G52: =G50-G51 -> 82810 | H52: =H50-H51 -> 77163.54462 | I52: 75890.56987 | J52: 81422.8335 | K52: 85395.92697 | L52: 77430.41475 | M52: 86259.42872 | N52: 96569.78164 | O52: 126107.4935 | P52: 131232.3716 | Q52: 112006.1028
D53: Less: Selling and Administrative | G53: 18632.25 | H53: 18048.55142 | I53: 18112.29887 | J53: 19331.78025 | K53: 19979.31674 | L53: 20027.21737 | M53: 23652.11938 | N53: 24743.3645 | O53: 31157.93947 | P53: 32896.5121 | Q53: 29597.24595
D54: Less: Depreciation Expense | G54: 13824.77397 | H54: 14022.46823 | I54: 14222.98953 | J54: 15912.66399 | K54: 17626.5008 | L54: 17878.55976 | M54: 20500.1106 | N54: 23159.14962 | O54: 23490.32546 | P54: 23826.23712 | Q54: 24166.95231
E55: Operating Profit | G55: =G52-G53-G54 -> 50352.97603 | H55: =H52-H53-H54 -> 45092.52497 | I55: 43555.28146 | J55: 46178.38925 | K55: 47790.10943 | L55: 39524.63762 | M55: 42107.19874 | N55: 48667.26752 | O55: 71459.22862 | P55: 74509.62237 | Q55: 58241.90457
D56: Add: Other Income | G56: 2717.388 | H56: 2717.388 | I56: 2818.032 | J56: 2818.032 | K56: 2818.032 | L56: 3019.32 | M56: 3019.32 | N56: 2516.1 | O56: 2616.744 | P56: 2566.422 | Q56: 2717.388
D57: Add: Interest Income | G57: 52.94458959 | H57: 120.7044733 | I57: 468.3553755 | J57: 690.1513971 | K57: 22.48882629 | L57: 271.2351246 | M57: 646.4485171 | N57: 222.8600342 | O57: 736.6832659 | P57: 1564.309075 | Q57: 1640.200027
D58: Less: Interest Expense - LTD | G58: 5264.628635 | H58: 4348.014175 | I58: 5503.222411 | J58: 4994.311782 | K58: 6464.443939 | L58: 6415.650247 | M58: 6555.78126 | N58: 8281.429469 | O58: 10728.47295 | P58: 11095.04957 | Q58: 8321.653754
D59: Less: Interest Expense - STD | G59: 81.5 | H59: 100 | I59: 100 | J59: 100 | K59: 500 | L59: 350 | M59: 300 | N59: 300 | O59: 300 | P59: 300 | Q59: 300
E60: Earnings Before Tax | G60: =G55+G56+G57-G58-G59 -> 47777.17999 | H60: =H55+H56+H57-H58-H59 -> 43482.60326 | I60: 41238.44643 | J60: 44592.26086 | K60: 43666.18632 | L60: 36049.5425 | M60: 38917.18599 | N60: 42824.79808 | O60: 63784.18293 | P60: 67245.30388 | Q60: 53977.83885
D61: Less: Taxes | G61: 11944.295 | H61: 11751.79301 | I61: 11449.6311 | J61: 14207.50305 | K61: 12096.55053 | L61: 9780.223138 | M61: 11766.78446 | N61: 11436.12318 | O61: 17973.4562 | P61: 18143.08477 | Q61: 14519.77821
E62: Net Income before Minority | G62: =G60-G61 -> 35832.88499 | H62: =H60-H61 -> 31730.81026 | I62: 29788.81533 | J62: 30384.75781 | K62: 31569.63578 | L62: 26269.31936 | M62: 27150.40154 | N62: 31388.6749 | O62: 45810.72673 | P62: 49102.2191 | Q62: 39458.06063
D63: Less: Minority | G63: 3368.291189 | H63: 2982.696164 | I63: 2800.148641 | J63: 2856.167234 | K63: 2967.545764 | L63: 2469.31602 | M63: 2552.137745 | N63: 2950.535441 | O63: 4306.208313 | P63: 4615.608596 | Q63: 3709.057699
E64: Net Income | G64: =G62-G63 -> 32464.5938 | H64: =H62-H63 -> 28748.11409 | I64: 26988.66669 | J64: 27528.59058 | K64: 28602.09002 | L64: 23800.00334 | M64: 24598.26379 | N64: 28438.13946 | O64: 41504.51842 | P64: 44486.61051 | Q64: 35749.00293
E66: Shares | G66: 7400 | H66: 7400 | I66: 7400 | J66: 7400 | K66: 7400 | L66: 7400 | M66: 7400 | N66: 9425.616352 | O66: 9425.616352 | P66: 9425.616352 | Q66: 9425.616352
E67: EPS | G67: =G64/G66 -> 4.387107271 | H67: =H64/H66 -> 3.884880283 | I67: 3.64711712 | J67: 3.720079808 | K67: 3.8651473 | L67: 3.216216667 | M67: 3.324089702 | N67: 3.017111921 | O67: 4.403374471 | P67: 4.719756124 | Q67: 3.79274963
E69: Dividends | G69: 22725.21566 | H69: 18686.27416 | I69: 17542.63335 | J69: 17893.58388 | K69: 18591.35851 | L69: 15470.00217 | M69: 15988.87147 | N69: 18484.79065 | O69: 26977.93697 | P69: 28916.29683 | Q69: 23236.85191
B71: Operating
C72: Industry Volumes | G72: 1820 | H72: 2115.430709 | I72: 2033.635572 | J72: 2327.454887 | K72: 2615.429791 | L72: 3170.967619 | M72: 3198.701082 | N72: 3416.189567 | O72: 2842.858222 | P72: 2814.362473 | Q72: 2884.093227
C73: Company Volumes | G73: 637 | H73: 593.6260721 | I73: 567.8963715 | J73: 619.9177467 | K73: 610.9090559 | L73: 657.5286032 | M73: 803.3101371 | N73: 733.0110291 | O73: 871.0578988 | P73: 912.5961351 | Q73: 868.3291743
C75: Industry Capacity | G75: 2020 | H75: 2200 | I75: 2400 | J75: 2600 | K75: 2800 | L75: 3400 | M75: 3400 | N75: 3900 | O75: 3900 | P75: 3900 | Q75: 4200
C76: Company Capacity | G76: 700 | H76: 700 | I76: 700 | J76: 800 | K76: 800 | L76: 800 | M76: 850 | N76: 940 | O76: 1050 | P76: 1100 | Q76: 1200
C78: Cost of Capacity | H78: 500 | I78: 510 | J78: 520.2 | K78: 530.604 | L78: 541.21608 | M78: 552.0404016 | N78: 563.0812096 | O78: 574.3428338 | P78: 585.8296905 | Q78: 597.5462843
B80: Assumptions
C81: Industry Demand Growth | G81: 0.04
C83: Capacity Scenario Code Number | G83: 1
D85: Company Modelled | G85: 2012 | H85: 2014 | I85: 2017 | J85: 2019 | K85: 2020
E86: Base Case | G86: 200 | H86: 100 | I86: 300 | J86: 150 | K86: 200
E87: Low Demand | G87: 200 | H87: 100 | I87: 300 | J87: 0 | K87: 0
E88: Surplus Capacity | G88: 200 | H88: 100 | I88: 300 | J88: 400 | K88: 400
D91: Other Company 1 | G91: 2012 | H91: 2015 | I91: 2018 | J91: 2020
E92: Base Case | G92: 100 | H92: 200 | I92: 400 | J92: 100
E93: Low Demand | G93: 100 | H93: 200 | I93: 100 | J93: 0
E94: Surplus Capacity | G94: 100 | H94: 200 | I94: 500 | J94: 300
D97: Other Company 2 | G97: 2012 | H97: 2015 | I97: 2016 | J97: 2017 | K97: 2019 | L97: 2020
E98: Base Case | G98: 50 | H98: 50 | I98: 50 | J98: 50 | K98: 50 | L98: 50
E99: Low Demand | G99: 50 | H99: 50 | I99: 50 | J99: 50 | K99: 0 | L99: 0
E100: Surplus Capacity | G100: 50 | H100: 50 | I100: 50 | J100: 50 | K100: 100 | L100: 100
D103: Other Company 3 | G103: 2012 | H103: 2013 | I103: 2014 | J103: 2017 | K103: 2019
E104: Base Case | G104: 300 | H104: 20 | I104: 150 | J104: 400 | K104: 200
E105: Low Demand | G105: 300 | H105: 20 | I105: 150 | J105: 200 | K105: 100
E106: Surplus Capacity | G106: 300 | H106: 20 | I106: 150 | J106: 100 | K106: 50
D109: Other Company 4 | G109: 2012 | H109: 2015 | I109: 2018 | J109: 2020
E110: Base Case | G110: 350 | H110: 450 | I110: 250 | J110: 150
E111: Low Demand | G111: 350 | H111: 450 | I111: 20 | J111: 0
E112: Surplus Capacity | G112: 350 | H112: 450 | I112: 350 | J112: 300
C115: Price
D116: Revenues | G116: =G50 -> 124215 | H116: 118174.5502 | I116: 117589.4686 | J116: 127089.0765 | K116: 131030.5132 | L116: 130643.2164 | M116: 151995.3128 | N116: 157253.8455 | O116: 198398.2844 | P116: 209868.2413 | Q116: 192585.4988 | R116: 0 | S116: 0 | T116: 0 | U116: 0 | V116: 0 | W116: 0 | X116: 0 | Y116: 0 | Z116: 0 | AA116: 0 | AB116: 0 | AC116: 0 | AD116: 0 | AE116: 0 | AF116: 0
D117: Volumes | G117: =G73 -> 637 | H117: 593.6260721 | I117: 567.8963715 | J117: 619.9177467 | K117: 610.9090559 | L117: 657.5286032 | M117: 803.3101371 | N117: 733.0110291 | O117: 871.0578988 | P117: 912.5961351 | Q117: 868.3291743 | R117: 0 | S117: 0 | T117: 0 | U117: 0 | V117: 0 | W117: 0 | X117: 0 | Y117: 0 | Z117: 0 | AA117: 0 | AB117: 0 | AC117: 0 | AD117: 0 | AE117: 0 | AF117: 0
E118: Historic Price | G118: =IF(G6,G116/G117) -> 195 | H118: 199.0723719 | I118: 207.0614896 | J118: 205.0095794 | K118: 214.4844833 | L118: 198.6882635 | M118: 189.211247 | N118: 214.5313499 | O118: 227.7670459 | P118: 229.9683652 | Q118: 221.7885849 | R118: FALSE | S118: FALSE | T118: FALSE | U118: FALSE | V118: FALSE | W118: FALSE | X118: FALSE | Y118: FALSE | Z118: FALSE | AA118: FALSE | AB118: FALSE | AC118: FALSE | AD118: FALSE | AE118: FALSE | AF118: FALSE
C121: Projected Price Table
D122: Capacity Balance | G122: 0 | H122: 0.9 | I122: 1 | J122: 1.05 | K122: 1.3 | L122: 1.5 | M122: 2
D123: LRMC | G123: 250 | H123: 250 | I123: 250 | J123: 250 | K123: 250 | L123: 250 | M123: 250
D124: SRMC | G124: 100 | H124: 100 | I124: 100 | J124: 100 | K124: 100 | L124: 100 | M124: 100
D125: Price | G125: 375 | H125: 300 | I125: 250 | J125: 200 | K125: 187.5 | L125: 182.5 | M125: =M124 -> 100
D127: Industry Capacity Balance
E128: Opening Balance
E129: Add: New Capacity for Company
E130: Add: New Capacity for Company 1
E131: Add: New Capacity for Company 2
E132: Add: New Capacity for Company 3
E133: Add: New Capacity for Company 4
E134: Closing Balance
D136: Industry Demand
E137: Growth Rate
E138: Demand
E140: Capacity Margin
E142: Company Capacity
E143: Company Demand
E145: Price

Sheet Advertising
C2: High Quality Modelling, Finance and Energy Courses
C4: This page is my advertising and publicity - You can of course delete the page without affecting the model
C6: I have taught classes for many years and I believe I have learned from my mistakes and can offer high quality courses
C8: Here is my simple concept
D9: 1. Deliver the courses at a reasonable price -- I will do quite well if a lot of people attend and I will survive if course numbers are low
E10: USD 1,000 -2,000 for courses in Europe
E11: USD 750 - 1,500 for courses in Africa and Latin America
D12: 2. Do not cancel the classes as long as one student has signed up (I take the risk of low numbers and not you)
D13: 3. Limit the size of the classes to 25 participants
D14: 4. Lunches are offered by not with a four course elaborate menu -- we assume that you are attending the course to learn and not to have a fancy lunch
C16: Download Outlines at | I16: www.FinanceEnergyInstitute.com
C17: Check for upcomming dates | I17: www.FinanceEnergyInstitute.com
C19: Customised In-Company Courses
C21: I also offer courses tailored for single institutions (or combinations of institutions)
C22: Depending on various considerations my rate is USD 1,500 to USD 2,000 per day plus expenses
C24: Contact Details
D25: E-mail | I25: edwardbodmer@gmail.com
D26: Phone | I26: 001-630-886-2754
D28: Skype | I28: edward.bodmer
D29: Link to Book

Sheet Sheet1
A2: History
B4: Balance Sheet | F4: 2000 | G4: =F4+1 -> 2001 | H4: 2002 | I4: 2003 | J4: 2004 | K4: 2005 | L4: 2006 | M4: 2007 | N4: 2008 | O4: 2009 | P4: 2010
C5: Assets
D6: Cash Balance | F6: =F139 -> 2484.3 | G6: =G139 -> 2363.491004 | H6: 2351.789372 | I6: 2541.78153 | J6: 2620.610265 | K6: 2612.864327 | L6: 3039.906256 | M6: 3145.076911 | N6: 3967.965688 | O6: 4197.364825 | P6: 3851.709975
D7: Investments | F7: 163
D8: A/R and Other Current Assets | F8: =F110 -> 10209.45205 | G8: =G110 -> 9707.581238 | H8: 9688.051298 | I8: 10484.91634 | J8: 10783.88731 | K8: 10737.96337 | L8: 12444.51908 | M8: 12847.57342 | N8: 16219.57123 | O8: 17106.71135 | P8: 15722.9009
E9: Total Current Assets | F9: =SUM(F6:F8) -> 12856.75205 | G9: =SUM(G6:G8) -> 12071.07224 | H9: 12039.84067 | I9: 13026.69787 | J9: 13404.49758 | K9: 13350.8277 | L9: 15484.42534 | M9: 15992.65033 | N9: 20187.53692 | O9: 21304.07617 | P9: 19574.61087
D11: Plant Assets | F11: =F91 -> 480432 | G11: =G91 -> 487302.1776 | H11: 494270.5987 | I11: 501338.6683 | J11: 612547.8113 | K11: 621307.245 | L11: 630191.9386 | M11: 804815.8038 | N11: 816324.6698 | O11: 827998.1125 | P11: 839838.4855
D12: Accumulated Depreciation | F12: =F103 -> 230240 | G12: =G103 -> 239389.4465 | H12: 248669.73 | I12: 259569.0073 | J12: 271070.03 | K12: 282735.5173 | L12: 296933.7085 | M12: 312044.7001 | N12: 327371.7789 | O12: 342918.0349 | P12: 358686.6023
E13: Net Plant | F13: =F11-F12 -> 250192 | G13: =G11-G12 -> 247912.7311 | H13: 245600.8687 | I13: 241769.661 | J13: 341477.7813 | K13: 338571.7276 | L13: 333258.23 | M13: 492771.1036 | N13: 488952.8909 | O13: 485080.0777 | P13: 481151.8832
E15: Other Non-Associated Investments | F15: =F112 -> 50322 | G15: =G112 -> 50322 | H15: 50322 | I15: 50322 | J15: 50322 | K15: 50322 | L15: 50322 | M15: 50322 | N15: 50322 | O15: 50322 | P15: 50322
E16: Derivative Assets | F16: =F115 -> 0 | G16: =G115 -> 0 | H16: 210 | I16: 350 | J16: 0 | K16: 0 | L16: 0 | M16: 320 | N16: 200 | O16: 0 | P16: 0
E17: Total Other Assets | F17: =SUM(F15:F16) -> 50322 | G17: =SUM(G15:G16) -> 50322 | H17: 50532 | I17: 50672 | J17: 50322 | K17: 50322 | L17: 50322 | M17: 50642 | N17: 50522 | O17: 50322 | P17: 50322
E19: Total Assets | F19: =F9+F13+F17 -> 313370.7521 | G19: =G9+G13+G17 -> 310305.8034 | H19: 308172.7094 | I19: 305468.3589 | J19: 405204.2788 | K19: 402244.5553 | L19: 399064.6554 | M19: 559405.754 | N19: 559662.4278 | O19: 556706.1538 | P19: 551048.4941
C22: Liabilities
D23: Short-term Debt | F23: =F144 -> 1630 | G23: =G144 -> 2000 | H23: 2000 | I23: 2000 | J23: 10000 | K23: 7000 | L23: 6000 | M23: 6000 | N23: 6000 | O23: 6000 | P23: 6000
D24: Other Current Liabilities | F24: =F127 -> 6908.39589 | G24: =G127 -> 6793.197751 | H24: 6894.166344 | I24: 7499.292769 | J24: 7557.231725 | K24: 8427.710993 | L24: 10257.36932 | M24: 9787.958164 | N24: 11858.25455 | O24: 12758.00901 | P24: 12617.19311
E25: Total Current Liabilities | F25: =F23+F24 -> 8538.39589 | G25: =G23+G24 -> 8793.197751 | H25: 8894.166344 | I25: 9499.292769 | J25: 17557.23172 | K25: 15427.71099 | L25: 16257.36932 | M25: 15787.95816 | N25: 17858.25455 | O25: 18758.00901 | P25: 18617.19311
E27: Long-term Debt | F27: =F130 -> 87743.81058 | G27: =G130 -> 77542.8221 | H27: 81801.9515 | I27: 79196.73814 | J27: 116518.5185 | K27: 117203.2837 | L27: 122322.835 | M27: 156829.2928 | N27: 168833.5846 | O27: 190119.2833 | P27: 171680.3787
E28: Un-funded Pension Plans | F28: =F134 -> 367 | G28: =G134 -> 351.8463688 | H28: 378.3037969 | I28: 530.8939626 | J28: 529.6763946 | K28: 821.1462157 | L28: 1302.803233 | M28: 1108.502457 | N28: 1554.915033 | O28: 1798.956526 | P28: 1873.707536
E30: Deferred Income Taxes | F30: =F137 -> 25019.2 | G30: =G137 -> 24791.27311 | H30: 24560.08687 | I30: 24176.9661 | J30: 34147.77813 | K30: 33857.17276 | L30: 33325.823 | M30: 49277.11036 | N30: 48895.28909 | O30: 48508.00777 | P30: 48115.18832
E31: Derivative Liabilities | F31: =F116 -> 0 | G31: =G116 -> 0 | H31: 0 | I31: 0 | J31: 290 | K31: 180 | L31: 240 | M31: 0 | N31: 0 | O31: 120 | P31: 315
E32: Total Other Liabilities | F32: =F27+F28+F30+F31 -> 113130.0106 | G32: =G27+G28+G30+G31 -> 102685.9416 | H32: 106740.3422 | I32: 103904.5982 | J32: 151485.973 | K32: 152061.6027 | L32: 157191.4613 | M32: 207214.9057 | N32: 219283.7888 | O32: 240546.2475 | P32: 221984.2745
E34: Minority Interest | F34: =F164 -> 19174.79151 | G34: =G164 -> 20185.27886 | H34: 21229.22252 | I34: 22209.27455 | J34: 23208.93308 | K34: 24247.57409 | L34: 25111.8347 | M34: 26005.08291 | N34: 27037.77032 | O34: 28544.94323 | P34: 30160.40623
E35: Common Equity | F35: =F150 -> 95873.95753 | G35: =G150 -> 95873.95753 | H35: 95873.95753 | I35: 95873.95753 | J35: 95873.95753 | K35: 95873.95753 | L35: 95873.95753 | M35: 175873.9575 | N35: 175873.9575 | O35: 175873.9575 | P35: 175873.9575
E36: Retained Earnings | F36: =F156 -> 76699.16603 | G36: =G156 -> 86438.54417 | H36: 96500.3841 | I36: 105946.4174 | J36: 115581.4241 | K36: 125592.1557 | L36: 133922.1568 | M36: 142531.5491 | N36: 152484.898 | O36: 167011.4794 | P36: 182581.7931
E37: Total Equity | F37: =SUM(F34:F36) -> 191747.9151 | G37: =SUM(G34:G36) -> 202497.7806 | H37: 213603.5642 | I37: 224029.6495 | J37: 234664.3148 | K37: 245713.6873 | L37: 254907.9491 | M37: 344410.5896 | N37: 355396.6258 | O37: 371430.3802 | P37: 388616.1569
E39: Total Liabilities and Capital | F39: =F25+F32+F37 -> 313416.3215 | G39: =G25+G32+G37 -> 313976.9199 | H39: 329238.0727 | I39: 337433.5405 | J39: 403707.5195 | K39: 413203.001 | L39: 428356.7797 | M39: 567413.4534 | N39: 592538.6691 | O39: 630734.6367 | P39: 629217.6245
E41: Difference | F41: =F19-F39 -> -45.56947945 | G41: =G19-G39 -> -3671.11652 | H41: -21065.36326 | I41: -31965.18163 | J41: 1496.759353 | K41: -10958.44563 | L41: -29292.12429 | M41: -8007.699444 | N41: -32876.24132 | O41: -74028.48288 | P41: -78169.13042
F42: =-F41 -> 45.56947945 | G42: =-G41 -> 3671.11652 | H42: 21065.36326 | I42: 31965.18163 | J42: -1496.759353 | K42: 10958.44563 | L42: 29292.12429 | M42: 8007.699444 | N42: 32876.24132 | O42: 74028.48288 | P42: 78169.13042
B44: Income Statement
D46: Revenues | F46: =F83 -> 124215 | G46: =G83 -> 118174.5502 | H46: 117589.4686 | I46: 127089.0765 | J46: 131030.5132 | K46: 130643.2164 | L46: 151995.3128 | M46: 157253.8455 | N46: 198398.2844 | O46: 209868.2413 | P46: 192585.4988
D47: Less: Cash Operating Expense | F47: =F120 -> 41405 | G47: =G120 -> 41011.00559 | H47: 41698.89872 | I47: 45666.24303 | J47: 45634.58626 | K47: 53212.80161 | L47: 65735.88406 | M47: 60684.06389 | N47: 72290.79086 | O47: 78635.86967 | P47: 80579.39595
E48: Gross Profit | F48: =F46-F47 -> 82810 | G48: =G46-G47 -> 77163.54462 | H48: 75890.56987 | I48: 81422.8335 | J48: 85395.92697 | K48: 77430.41475 | L48: 86259.42872 | M48: 96569.78164 | N48: 126107.4935 | O48: 131232.3716 | P48: 112006.1028
D49: Less: Selling and Administrative | F49: =F123 -> 18632.25 | G49: =G123 -> 18048.55142 | H49: 18112.29887 | I49: 19331.78025 | J49: 19979.31674 | K49: 20027.21737 | L49: 23652.11938 | M49: 24743.3645 | N49: 31157.93947 | O49: 32896.5121 | P49: 29597.24595
D50: Less: Depreciation Expense | F50: =F101 -> 13824.77397 | G50: =G101 -> 14022.46823 | H50: 14222.98953 | I50: 15912.66399 | J50: 17626.5008 | K50: 17878.55976 | L50: 20500.1106 | M50: 23159.14962 | N50: 23490.32546 | O50: 23826.23712 | P50: 24166.95231
E51: Operating Profit | F51: =F48-F49-F50 -> 50352.97603 | G51: =G48-G49-G50 -> 45092.52497 | H51: 43555.28146 | I51: 46178.38925 | J51: 47790.10943 | K51: 39524.63762 | L51: 42107.19874 | M51: 48667.26752 | N51: 71459.22862 | O51: 74509.62237 | P51: 58241.90457
D52: Add: Other Income | F52: =F113 -> 2717.388 | G52: =G113 -> 2717.388 | H52: 2818.032 | I52: 2818.032 | J52: 2818.032 | K52: 3019.32 | L52: 3019.32 | M52: 2516.1 | N52: 2616.744 | O52: 2566.422 | P52: 2717.388
D53: Add: Interest Income | F53: =F142 -> 52.94458959 | G53: =G142 -> 120.7044733 | H53: 468.3553755 | I53: 690.1513971 | J53: 22.48882629 | K53: 271.2351246 | L53: 646.4485171 | M53: 222.8600342 | N53: 736.6832659 | O53: 1564.309075 | P53: 1640.200027
D54: Less: Interest Expense - LTD | F54: =F132 -> 5264.628635 | G54: =G132 -> 4348.014175 | H54: 5503.222411 | I54: 4994.311782 | J54: 6464.443939 | K54: 6415.650247 | L54: 6555.78126 | M54: 8281.429469 | N54: 10728.47295 | O54: 11095.04957 | P54: 8321.653754
D55: Less: Interest Expense - STD | F55: =F146 -> 81.5 | G55: =G146 -> 100 | H55: 100 | I55: 100 | J55: 500 | K55: 350 | L55: 300 | M55: 300 | N55: 300 | O55: 300 | P55: 300
E56: Earnings Before Tax | F56: =F51+F52+F53-F54-F55 -> 47777.17999 | G56: =G51+G52+G53-G54-G55 -> 43482.60326 | H56: 41238.44643 | I56: 44592.26086 | J56: 43666.18632 | K56: 36049.5425 | L56: 38917.18599 | M56: 42824.79808 | N56: 63784.18293 | O56: 67245.30388 | P56: 53977.83885
D57: Less: Taxes | F57: =F56*F148 -> 11944.295 | G57: =G56*G148 -> 11751.79301 | H57: 11449.6311 | I57: 14207.50305 | J57: 12096.55053 | K57: 9780.223138 | L57: 11766.78446 | M57: 11436.12318 | N57: 17973.4562 | O57: 18143.08477 | P57: 14519.77821
E58: Net Income before Minority | F58: =F56-F57 -> 35832.88499 | G58: =G56-G57 -> 31730.81026 | H58: 29788.81533 | I58: 30384.75781 | J58: 31569.63578 | K58: 26269.31936 | L58: 27150.40154 | M58: 31388.6749 | N58: 45810.72673 | O58: 49102.2191 | P58: 39458.06063
D59: Less: Minority | F59: =F165 -> 3368.291189 | G59: =G165 -> 2982.696164 | H59: 2800.148641 | I59: 2856.167234 | J59: 2967.545764 | K59: 2469.31602 | L59: 2552.137745 | M59: 2950.535441 | N59: 4306.208313 | O59: 4615.608596 | P59: 3709.057699
E60: Net Income | F60: =F58-F59 -> 32464.5938 | G60: =G58-G59 -> 28748.11409 | H60: 26988.66669 | I60: 27528.59058 | J60: 28602.09002 | K60: 23800.00334 | L60: 24598.26379 | M60: 28438.13946 | N60: 41504.51842 | O60: 44486.61051 | P60: 35749.00293
E62: Shares | F62: =F169 -> 7400 | G62: =G169 -> 7400 | H62: 7400 | I62: 7400 | J62: 7400 | K62: 7400 | L62: 7400 | M62: 9425.616352 | N62: 9425.616352 | O62: 9425.616352 | P62: 9425.616352
E63: EPS | F63: =F60/F62 -> 4.387107271 | G63: =G60/G62 -> 3.884880283 | H63: 3.64711712 | I63: 3.720079808 | J63: 3.8651473 | K63: 3.216216667 | L63: 3.324089702 | M63: 3.017111921 | N63: 4.403374471 | O63: 4.719756124 | P63: 3.79274963
E65: Dividends | F65: =F162 -> 22725.21566 | G65: =G162 -> 18686.27416 | H65: 17542.63335 | I65: 17893.58388 | J65: 18591.35851 | K65: 15470.00217 | L65: 15988.87147 | M65: 18484.79065 | N65: 26977.93697 | O65: 28916.29683 | P65: 23236.85191
B70: Opeating
F71: 0.04 | G71: 0.1 | P71: =(P72/F72)^(1/10)-1 -> 0.09527459819
C72: Industry Volumes | F72: 1820 | G72: =F72*(1+$F$71)+F72*(1+$F$71)*NORMSINV(RAND())*$G$71 -> 1837.599988 | H72: 2144.31523 | I72: 2300.161845 | J72: 2516.037938 | K72: 2667.663072 | L72: 2952.431257 | M72: 2836.818247 | N72: 3015.923369 | O72: 3751.41936 | P72: 4521.697902
G73: =G72/F72-1 -> 0.009670322832 | H73: 0.1669107772 | I73: 0.07267896693 | J73: 0.09385256667 | K73: 0.06026345287 | L73: 0.1067481826 | M73: -0.03915857784 | N73: 0.06313591717 | O73: 0.2438709148 | P73: 0.2053298946
C74: Industry Volumes | F74: 1820 | G74: 2115.430709 | H74: 2033.635572 | I74: 2327.454887 | J74: 2615.429791 | K74: 3170.967619 | L74: 3198.701082 | M74: 3416.189567 | N74: 2842.858222 | O74: 2814.362473 | P74: 2884.093227
C75: Company Volumes | F75: 637 | G75: 593.6260721 | H75: 567.8963715 | I75: 619.9177467 | J75: 610.9090559 | K75: 657.5286032 | L75: 803.3101371 | M75: 733.0110291 | N75: 871.0578988 | O75: 912.5961351 | P75: 868.3291743
C77: Industry Capacity | F77: 2020 | G77: 2200 | H77: 2400 | I77: 2600 | J77: 2800 | K77: 3400 | L77: =K77 -> 3400 | M77: 3900 | N77: =M77 -> 3900 | O77: =N77 -> 3900 | P77: 4200
C78: Company Capacity | F78: 600 | G78: =F78 -> 600 | H78: =G78 -> 600 | I78: 800 | J78: 800 | K78: 800 | L78: 1100 | M78: 1100 | N78: 1100 | O78: 1100 | P78: 1100
C80: Adjustment | F80: 13 | G80: =F80 -> 13 | H80: =G80 -> 13 | I80: 13 | J80: 13 | K80: 13 | L80: 13 | M80: 13 | N80: 13 | O80: 13 | P80: 13
C81: Company Price | F81: 15 | G81: 15.31325938 | H81: 15.92780689 | I81: 15.76996765 | J81: 16.49880641 | K81: 15.28371258 | L81: 14.55471131 | M81: 16.50241153 | N81: 17.52054199 | O81: 17.68987424 | P81: 17.06066038
C82: Adjusted Price | F82: =F80*F81 -> 195 | G82: =G80*G81 -> 199.0723719 | H82: 207.0614896 | I82: 205.0095794 | J82: 214.4844833 | K82: 198.6882635 | L82: 189.211247 | M82: 214.5313499 | N82: 227.7670459 | O82: 229.9683652 | P82: 221.7885849
C83: Revenues | F83: =F82*F75 -> 124215 | G83: =G82*G75 -> 118174.5502 | H83: 117589.4686 | I83: 127089.0765 | J83: 131030.5132 | K83: 130643.2164 | L83: 151995.3128 | M83: 157253.8455 | N83: 198398.2844 | O83: 209868.2413 | P83: 192585.4988
C85: Market Share | F85: =F75/F74 -> 0.35 | G85: =G75/G74 -> 0.2806171196 | H85: 0.2792517888 | I85: 0.2663500591 | J85: 0.2335788397 | K85: 0.2073589775 | L85: 0.2511363571 | M85: 0.2145697756 | N85: 0.3064021596 | O85: 0.3242638941 | P85: 0.3010752795
C86: Market Capacity | F86: =F78/F77 -> 0.297029703 | G86: =G78/G77 -> 0.2727272727 | H86: 0.25 | I86: 0.3076923077 | J86: 0.2857142857 | K86: 0.2352941176 | L86: 0.3235294118 | M86: 0.2820512821 | N86: 0.2820512821 | O86: 0.2820512821 | P86: 0.2619047619
C88: Increase Capacity | G88: =G78-F78 -> 0 | H88: =H78-G78 -> 0 | I88: 200 | J88: 0 | K88: 0 | L88: 300 | M88: 0 | N88: 0 | O88: 0 | P88: 0
C89: Cost of Capacity | G89: 500 | H89: =G89*1.02 -> 510 | I89: =H89*1.02 -> 520.2 | J89: 530.604 | K89: 541.21608 | L89: 552.0404016 | M89: 563.0812096 | N89: 574.3428338 | O89: 585.8296905 | P89: 597.5462843
C91: Plant Cost | F91: 480432 | G91: =F97 -> 487302.1776 | H91: =G97 -> 494270.5987 | I91: 501338.6683 | J91: 612547.8113 | K91: 621307.245 | L91: 630191.9386 | M91: 804815.8038 | N91: 816324.6698 | O91: 827998.1125 | P91: 839838.4855
C92: Retirement Rate | F92: 0.01 | G92: 0.01 | H92: 0.01 | I92: 0.01 | J92: 0.01 | K92: 0.01 | L92: 0.01 | M92: 0.01 | N92: 0.01 | O92: 0.01 | P92: 0.01
C93: Retirements | F93: =F92*F91 -> 4804.32 | G93: =G92*G91 -> 4873.021776 | H93: =H92*H91 -> 4942.705987 | I93: 5013.386683 | J93: 6125.478113 | K93: 6213.07245 | L93: 6301.919386 | M93: 8048.158038 | N93: 8163.246698 | O93: 8279.981125 | P93: 8398.384855
C94: New Additions | F94: =F88*F89 -> 0 | G94: =G88*G89 -> 0 | H94: =H88*H89 -> 0 | I94: 104040 | J94: 0 | K94: 0 | L94: 165612.1205 | M94: 0 | N94: 0 | O94: 0 | P94: 0
C95: Maintenance Perecent | F95: 0.0243 | G95: 0.0243 | H95: 0.0243 | I95: 0.0243 | J95: 0.0243 | K95: 0.0243 | L95: 0.0243 | M95: 0.0243 | N95: 0.0243 | O95: 0.0243 | P95: 0.0243
C96: Maintenance Expenditures | F96: =F95*F91 -> 11674.4976 | G96: =G95*G91 -> 11841.44292 | H96: =H95*H91 -> 12010.77555 | I96: 12182.52964 | J96: 14884.91181 | K96: 15097.76605 | L96: 15313.66411 | M96: 19557.02403 | N96: 19836.68948 | O96: 20120.35413 | P96: 20408.0752
C97: Ending Balance | F97: =F91-F93+F94+F96 -> 487302.1776 | G97: =G91-G93+G94+G96 -> 494270.5987 | H97: =H91-H93+H94+H96 -> 501338.6683 | I97: 612547.8113 | J97: 621307.245 | K97: 630191.9386 | L97: 804815.8038 | M97: 816324.6698 | N97: 827998.1125 | O97: 839838.4855 | P97: 851848.1759
C99: Deperciation Life | F99: 35 | G99: 35 | H99: 35 | I99: 35 | J99: 35 | K99: 35 | L99: 35 | M99: 35 | N99: 35 | O99: 35 | P99: 35
C100: Depreciaiton Rate | F100: =1/F99 -> 0.02857142857 | G100: =1/G99 -> 0.02857142857 | H100: 0.02857142857 | I100: 0.02857142857 | J100: 0.02857142857 | K100: 0.02857142857 | L100: 0.02857142857 | M100: 0.02857142857 | N100: 0.02857142857 | O100: 0.02857142857 | P100: 0.02857142857
C101: Depreciation Expense | F101: =F100*AVERAGE(F97,F91) -> 13824.77397 | G101: =G100*AVERAGE(G97,G91) -> 14022.46823 | H101: 14222.98953 | I101: 15912.66399 | J101: 17626.5008 | K101: 17878.55976 | L101: 20500.1106 | M101: 23159.14962 | N101: 23490.32546 | O101: 23826.23712 | P101: 24166.95231
C103: Accumulated Depreciation | F103: 230240 | G103: =F103+G101-G93 -> 239389.4465 | H103: =G103+H101-H93 -> 248669.73 | I103: 259569.0073 | J103: 271070.03 | K103: 282735.5173 | L103: 296933.7085 | M103: 312044.7001 | N103: 327371.7789 | O103: 342918.0349 | P103: 358686.6023
C105: Capital Expenditures | G105: =G88*G89 -> 0 | H105: =H88*H89 -> 0 | I105: 104040 | J105: 0 | K105: 0 | L105: 165612.1205 | M105: 0 | N105: 0 | O105: 0 | P105: 0
C106: Maintenance Cap Exp Percent | G106: 0.06 | H106: 0.06 | I106: 0.06 | J106: 0.06 | K106: 0.06 | L106: 0.06 | M106: 0.06 | N106: 0.06 | O106: 0.06 | P106: 0.06
C108: A/R Days | F108: 30 | G108: 29.98333521 | H108: 30.07189986 | I108: 30.11269393 | J108: 30.03971191 | K108: 30.00046034 | L108: 29.88414171 | M108: 29.82034736 | N108: 29.83969099 | O108: 29.75176046 | P108: 29.79901843
C109: A/R Percent | F109: =F108/365 -> 0.08219178082 | G109: 0.08214612386 | H109: 0.08238876674 | I109: 0.08250053132 | J109: 0.08230058058 | K109: 0.08219304203 | L109: 0.08187436084 | M109: 0.08169958182 | N109: 0.08175257804 | O109: 0.0815116725 | P109: 0.08164114639
C110: A/R | F110: =F109*F83 -> 10209.45205 | G110: 9707.581238 | H110: 9688.051298 | I110: 10484.91634 | J110: 10783.88731 | K110: 10737.96337 | L110: 12444.51908 | M110: 12847.57342 | N110: 16219.57123 | O110: 17106.71135 | P110: 15722.9009
C112: Other Investments | F112: 50322 | G112: 50322 | H112: 50322 | I112: 50322 | J112: 50322 | K112: 50322 | L112: 50322 | M112: 50322 | N112: 50322 | O112: 50322 | P112: 50322
C113: Income on Other Investments | F113: =F112*0.054 -> 2717.388 | G113: =G112*0.054 -> 2717.388 | H113: =H112*0.056 -> 2818.032 | I113: =I112*0.056 -> 2818.032 | J113: =J112*0.056 -> 2818.032 | K113: =K112*0.06 -> 3019.32 | L113: =L112*0.06 -> 3019.32 | M113: =M112*0.05 -> 2516.1 | N113: =N112*0.052 -> 2616.744 | O113: =O112*0.051 -> 2566.422 | P113: =P112*0.054 -> 2717.388
C115: Derivative Assets | F115: 0 | G115: 0 | H115: 210 | I115: 350 | J115: 0 | K115: 0 | L115: 0 | M115: 320 | N115: 200 | O115: 0 | P115: 0
C116: Derivative Liabilities | F116: 0 | G116: 0 | H116: 0 | I116: 0 | J116: 290 | K116: 180 | L116: 240 | M116: 0 | N116: 0 | O116: 120 | P116: 315
C118: Operating Cost per Unit | F118: 5 | G118: 5.314275915 | H118: 5.648226957 | I118: 5.666538737 | J118: 5.746113526 | K118: 6.225269002 | L118: 6.294712631 | M118: 6.368260134 | N118: 6.383995913 | O118: 6.6282475 | P118: 7.138324102
C119: Adjusted Cost | F119: =F118*F80 -> 65 | G119: =G118*G80 -> 69.0855869 | H119: 73.42695044 | I119: 73.66500358 | J119: 74.69947583 | K119: 80.92849703 | L119: 81.8312642 | M119: 82.78738175 | N119: 82.99194687 | O119: 86.1672175 | P119: 92.79821332
C120: Total Operating Cost | F120: =F119*F75 -> 41405 | G120: =G119*G75 -> 41011.00559 | H120: 41698.89872 | I120: 45666.24303 | J120: 45634.58626 | K120: 53212.80161 | L120: 65735.88406 | M120: 60684.06389 | N120: 72290.79086 | O120: 78635.86967 | P120: 80579.39595
C122: SG&A Percent | F122: 0.15 | G122: 0.1527279045 | H122: 0.1540299407 | I122: 0.1521120523 | J122: 0.1524783521 | K122: 0.1532970324 | L122: 0.1556108471 | M122: 0.1573466418 | N122: 0.1570474239 | O122: 0.1567484051 | P122: 0.1536836685
C123: SG&A Amount | F123: =F122*F83 -> 18632.25 | G123: =G122*G83 -> 18048.55142 | H123: 18112.29887 | I123: 19331.78025 | J123: 19979.31674 | K123: 20027.21737 | L123: 23652.11938 | M123: 24743.3645 | N123: 31157.93947 | O123: 32896.5121 | P123: 29597.24595
C125: A/P Days | F125: =F108+12 -> 42 | G125: =G108+12 -> 41.98333521 | H125: 42.07189986 | I125: 42.11269393 | J125: 42.03971191 | K125: 42.00046034 | L125: 41.88414171 | M125: 41.82034736 | N125: 41.83969099 | O125: 41.75176046 | P125: 41.79901843
C126: A/P Percent | F126: =F125/365 -> 0.1150684932 | G126: =G125/365 -> 0.1150228362 | H126: 0.1152654791 | I126: 0.1153772436 | J126: 0.1151772929 | K126: 0.1150697544 | L126: 0.1147510732 | M126: 0.1145762941 | N126: 0.1146292904 | O126: 0.1143883848 | P126: 0.1145178587
C127: A/P | F127: =F126*(F120+F123) -> 6908.39589 | G127: =G126*(G120+G123) -> 6793.197751 | H127: 6894.166344 | I127: 7499.292769 | J127: 7557.231725 | K127: 8427.710993 | L127: 10257.36932 | M127: 9787.958164 | N127: 11858.25455 | O127: 12758.00901 | P127: 12617.19311
C129: Debt to Assets | F129: 0.2 | G129: 0.1784940194 | H129: 0.1896013618 | I129: 0.1851880793 | J129: 0.2053964322 | K129: 0.2081237151 | L129: 0.218945608 | M129: 0.2002498592 | N129: 0.2154788523 | O129: 0.2439338727 | P129: 0.2225372961
C130: Total Long-term Debt | F130: =F129*F19*1.4 -> 87743.81058 | G130: 77542.8221 | H130: 81801.9515 | I130: 79196.73814 | J130: 116518.5185 | K130: 117203.2837 | L130: 122322.835 | M130: 156829.2928 | N130: 168833.5846 | O130: 190119.2833 | P130: 171680.3787
C131: Interest Rate | F131: 0.06 | G131: 0.05607242627 | H131: 0.06727495261 | I131: 0.06306208942 | J131: 0.05547997025 | K131: 0.05473950936 | L131: 0.05359409188 | M131: 0.05280537404 | N131: 0.0635446613 | O131: 0.05835835997 | P131: 0.04847178121
C132: Interest Expense | F132: =F131*F130 -> 5264.628635 | G132: =G131*G130 -> 4348.014175 | H132: 5503.222411 | I132: 4994.311782 | J132: 6464.443939 | K132: 6415.650247 | L132: 6555.78126 | M132: 8281.429469 | N132: 10728.47295 | O132: 11095.04957 | P132: 8321.653754
C134: Pension Obigations | F134: 367 | G134: 351.8463688 | H134: 378.3037969 | I134: 530.8939626 | J134: 529.6763946 | K134: 821.1462157 | L134: 1302.803233 | M134: 1108.502457 | N134: 1554.915033 | O134: 1798.956526 | P134: 1873.707536
C136: Deferred Taxes as Pct of Plant | F136: 0.1 | G136: 0.1 | H136: 0.1 | I136: 0.1 | J136: 0.1 | K136: 0.1 | L136: 0.1 | M136: 0.1 | N136: 0.1 | O136: 0.1 | P136: 0.1
C137: Deferred Taxes | F137: =F136*F13 -> 25019.2 | G137: 24791.27311 | H137: 24560.08687 | I137: 24176.9661 | J137: 34147.77813 | K137: 33857.17276 | L137: 33325.823 | M137: 49277.11036 | N137: 48895.28909 | O137: 48508.00777 | P137: 48115.18832
C139: Cash Balance | F139: =F83*0.02 -> 2484.3 | G139: =G83*0.02 -> 2363.491004 | H139: 2351.789372 | I139: 2541.78153 | J139: 2620.610265 | K139: 2612.864327 | L139: 3039.906256 | M139: 3145.076911 | N139: 3967.965688 | O139: 4197.364825 | P139: 3851.709975
C140: Investments | F140: 162.9294795 | G140: 3671.73266 | H140: 21065.9794 | I140: 31965.78833 | J140: -1496.16895 | K140: 10948.8919 | L140: 29282.5196 | M140: 7997.924798 | N140: 32866.19761 | O140: 74018.08895 | P140: 78158.29139
C141: Interest Income Rate | F141: 0.02 | G141: 0.02 | H141: 0.02 | I141: 0.02 | J141: 0.02 | K141: 0.02 | L141: 0.02 | M141: 0.02 | N141: 0.02 | O141: 0.02 | P141: 0.02
C142: Interest Income | F142: =F141*(F139+F140) -> 52.94458959 | G142: =G141*(G139+G140) -> 120.7044733 | H142: 468.3553755 | I142: 690.1513971 | J142: 22.48882629 | K142: 271.2351246 | L142: 646.4485171 | M142: 222.8600342 | N142: 736.6832659 | O142: 1564.309075 | P142: 1640.200027
C144: Short-term Debt | F144: 1630 | G144: 2000 | H144: =G144 -> 2000 | I144: 2000 | J144: 10000 | K144: 7000 | L144: 6000 | M144: 6000 | N144: 6000 | O144: 6000 | P144: 6000
C145: Interest Expense Rate | F145: 0.05 | G145: 0.05 | H145: 0.05 | I145: 0.05 | J145: 0.05 | K145: 0.05 | L145: 0.05 | M145: 0.05 | N145: 0.05 | O145: 0.05 | P145: 0.05
C146: Interest Expense | F146: =F145*F144 -> 81.5 | G146: =G145*G144 -> 100 | H146: 100 | I146: 100 | J146: 500 | K146: 350 | L146: 300 | M146: 300 | N146: 300 | O146: 300 | P146: 300
C148: Tax Rate | F148: 0.25 | G148: 0.2702642465 | H148: 0.277644579 | I148: 0.3186091662 | J148: 0.2770232886 | K148: 0.2712995079 | L148: 0.3023544523 | M148: 0.2670444156 | N148: 0.2817854737 | O148: 0.2698044879 | P148: 0.2689951751
C150: Common Equity | F150: 95873.95753 | G150: =F152 -> 95873.95753 | H150: =G152 -> 95873.95753 | I150: 95873.95753 | J150: 95873.95753 | K150: 95873.95753 | L150: 95873.95753 | M150: 175873.9575 | N150: 175873.9575 | O150: 175873.9575 | P150: 175873.9575
C151: Add: New Equity Issue | L151: 80000 | M151: 0
C152: Ending | F152: =F150+F151 -> 95873.95753 | G152: =G150+G151 -> 95873.95753 | H152: =H150+H151 -> 95873.95753 | I152: 95873.95753 | J152: 95873.95753 | K152: 95873.95753 | L152: 175873.9575 | M152: =M150+M151 -> 175873.9575 | N152: 175873.9575 | O152: 175873.9575 | P152: 175873.9575
C154: Equity Percent | F154: =(F37)/(F37+F27) -> 0.6860593623 | G154: =(G37)/(G37+G27) -> 0.7231015026 | H154: 0.7230859034 | I154: 0.7388197685 | J154: 0.6682112351 | K154: 0.6770520723 | L154: 0.6757347486 | M154: 0.6871172899 | N154: 0.6779399942 | O154: 0.6614381672 | P154: 0.6935901477
C156: Retained Earings | F156: 76699.16603 | G156: =F159 -> 86438.54417 | H156: =G159 -> 96500.3841 | I156: 105946.4174 | J156: 115581.4241 | K156: 125592.1557 | L156: 133922.1568 | M156: 142531.5491 | N156: 152484.898 | O156: 167011.4794 | P156: 182581.7931
C157: Add: Income | F157: =F60 -> 32464.5938 | G157: =G60 -> 28748.11409 | H157: =H60 -> 26988.66669 | I157: 27528.59058 | J157: 28602.09002 | K157: 23800.00334 | L157: 24598.26379 | M157: 28438.13946 | N157: 41504.51842 | O157: 44486.61051 | P157: 35749.00293
C158: Less: Dividends | F158: =F162 -> 22725.21566 | G158: =G162 -> 18686.27416 | H158: =H162 -> 17542.63335 | I158: 17893.58388 | J158: 18591.35851 | K158: 15470.00217 | L158: 15988.87147 | M158: 18484.79065 | N158: 26977.93697 | O158: 28916.29683 | P158: 23236.85191
C159: Closing | F159: =F156+F157-F158 -> 86438.54417 | G159: =G156+G157-G158 -> 96500.3841 | H159: =H156+H157-H158 -> 105946.4174 | I159: 115581.4241 | J159: 125592.1557 | K159: 133922.1568 | L159: 142531.5491 | M159: 152484.898 | N159: 167011.4794 | O159: 182581.7931 | P159: 195093.9441
C161: Payout Ratio | F161: 0.7 | G161: 0.65 | H161: 0.65 | I161: 0.65 | J161: 0.65 | K161: 0.65 | L161: 0.65 | M161: 0.65 | N161: 0.65 | O161: 0.65 | P161: 0.65
C162: Dividends | F162: =F161*F60 -> 22725.21566 | G162: =G161*G60 -> 18686.27416 | H162: 17542.63335 | I162: 17893.58388 | J162: 18591.35851 | K162: 15470.00217 | L162: 15988.87147 | M162: 18484.79065 | N162: 26977.93697 | O162: 28916.29683 | P162: 23236.85191
C164: Minority | F164: 19174.79151 | G164: =F167 -> 20185.27886 | H164: =G167 -> 21229.22252 | I164: 22209.27455 | J164: 23208.93308 | K164: 24247.57409 | L164: 25111.8347 | M164: 26005.08291 | N164: 27037.77032 | O164: 28544.94323 | P164: 30160.40623
C165: Add: Income | F165: =F58*0.094 -> 3368.291189 | G165: =G58*0.094 -> 2982.696164 | H165: =H58*0.094 -> 2800.148641 | I165: 2856.167234 | J165: 2967.545764 | K165: 2469.31602 | L165: 2552.137745 | M165: 2950.535441 | N165: 4306.208313 | O165: 4615.608596 | P165: 3709.057699
C166: Less: Dividends | F166: =F161*F165 -> 2357.803832 | G166: =G161*G165 -> 1938.752507 | H166: =H161*H165 -> 1820.096617 | I166: 1856.508702 | J166: 1928.904746 | K166: 1605.055413 | L166: 1658.889534 | M166: 1917.848037 | N166: 2799.035403 | O166: 3000.145587 | P166: 2410.887505
C167: Closing | F167: =F164+F165-F166 -> 20185.27886 | G167: =G164+G165-G166 -> 21229.22252 | H167: =H164+H165-H166 -> 22209.27455 | I167: 23208.93308 | J167: 24247.57409 | K167: 25111.8347 | L167: 26005.08291 | M167: 27037.77032 | N167: 28544.94323 | O167: 30160.40623 | P167: 31458.57643
C169: Shares | F169: 7400 | G169: =F172 -> 7400 | H169: =G172 -> 7400 | I169: 7400 | J169: 7400 | K169: 7400 | L169: 7400 | M169: 9425.616352 | N169: 9425.616352 | O169: 9425.616352 | P169: 9425.616352
C170: New Equity | F170: =F151 -> 0 | G170: =G151 -> 0 | H170: =H151 -> 0 | I170: 0 | J170: 0 | K170: 0 | L170: 80000 | M170: 0 | N170: 0 | O170: 0 | P170: 0
C171: New Shares | F171: =F170/F175 -> 0 | G171: =G170/G175 -> 0 | H171: =H170/H175 -> 0 | I171: 0 | J171: 0 | K171: 0 | L171: 2025.616352 | M171: 0 | N171: 0 | O171: 0 | P171: 0
C172: Ending | F172: =F169+F171 -> 7400 | G172: =G169+G171 -> 7400 | H172: =H169+H171 -> 7400 | I172: 7400 | J172: 7400 | K172: 7400 | L172: 9425.616352 | M172: 9425.616352 | N172: 9425.616352 | O172: 9425.616352 | P172: 9425.616352
C174: P/E Ratio | F174: 12 | G174: 11.80968475 | H174: 11.55716968 | I174: 11.60875447 | J174: 11.69277363 | K174: 11.88857117 | L174: 11.88119319 | M174: 12.14207675 | N174: 12.21260729 | O174: 12.01071678 | P174: 11.63671831
C175: Price | F175: =F174*F63 -> 52.64528725 | G175: =G174*G63 -> 45.87921143 | H175: =H174*H63 -> 42.15035138 | I175: 43.1854931 | J175: 45.19429241 | K175: 38.23622076 | L175: 39.49415194 | M175: 36.63400451 | N175: 53.77668315 | O175: 56.6876541 | P175: 44.13515906
C177: Average Equity | F177: =AVERAGE(E37:F37) -> 191747.9151 | G177: =AVERAGE(F37:G37) -> 197122.8478 | H177: 208050.6724 | I177: 218816.6068 | J177: 229346.9821 | K177: 240189.001 | L177: 250310.8182 | M177: 299659.2693 | N177: 349903.6077 | O177: 363413.503 | P177: 380023.2685
C178: Net Income | F178: =F60 -> 32464.5938 | G178: =G60 -> 28748.11409 | H178: 26988.66669 | I178: 27528.59058 | J178: 28602.09002 | K178: 23800.00334 | L178: 24598.26379 | M178: 28438.13946 | N178: 41504.51842 | O178: 44486.61051 | P178: 35749.00293
C180: ROE | F180: =F178/F177 -> 0.1693087186 | G180: =G178/G177 -> 0.1458385693 | H180: 0.1297216028 | I180: 0.1258066788 | J180: 0.1247109936 | K180: 0.09908864785 | L180: 0.09827087767 | M180: 0.09490158448 | N180: 0.1186170062 | O180: 0.1224132019 | P180: 0.09407056329
C182: Margin | F182: =F48/F46 -> 0.6666666667 | G182: =G48/G46 -> 0.6529624567 | H182: 0.6453857712 | I182: 0.64067531 | J182: 0.6517255017 | K182: 0.5926860721 | L182: 0.567513742 | M182: 0.6141012407 | N182: 0.6356279437 | O182: 0.6253083878 | P182: 0.5815915712
